Workbook

Sheet USACE Structures Data Fields
B2: Harbor Structures Database Fields Supplied by USACE
B5: Field | C5: Units | D5: Descriptor
A6: 1 | B6: Record_No | D6: Unique Record for Each Wall or Wall Section
A7: 2 | B7: Facility or Project | D7: Duluth Ship Canal, Superior Entry
A8: 3 | B8: City | D8: Duluth, Superior
A9: 4 | B9: Location Name | D9: Wall, Dock
A10: 5 | B10: Facility Information | D10: Marina, WWTP, Grain loading facility, Coal loading facility, shipyard
A11: 6 | B11: Owner
A12: 7 | B12: Manufacturer | D12: US Steel, Bethlehem
A13: 8 | B13: Type | D13: H-Piles, Pipe Piles, MZ32, PZ38
A14: 9 | B14: Era Installed | D14: mid-1940s, Late 1970s
A15: 10 | B15: Year Installed | D15: 1942
A16: 11 | B16: Original Thickness | C16: mm
A17: 12 | B17: Type | C17: HR/CR | D17: Hot rolled vs. Cold rolled
A18: 13 | B18: Capped | C18: Y/N
A19: 14 | B19: ASTM Specification
A20: 15 | B20: Current Thickness | C20: mm
A21: 16 | B21: Thickness Measurement Date | C21: Date
A22: 17 | B22: Instantaneous Corrosion Rate | C22: mm/year
A23: 18 | B23: Date Corrosion Measured | C23: Date
A24: 19 | B24: Inspection Date
A25: 20 | B25: Depth Driven | C25: Feet | D25: Below IGLD
A26: 21 | B26: Average Water Depth | C26: Feet | D26: Below IGLD
A27: 22 | B27: Dredge depth | C27: Feet | D27: station and depth
A28: 23 | B28: Coating | C28: Y/N
A29: 24 | B29: Year Coated | C29: Date
A30: 25 | B30: Coating_Name
A31: 26 | B31: Coating_Manufacturer
A32: 27 | B32: Coating_Type | D32: Epoxy,
A33: 28 | B33: Location | D33: Station start and end
A34: 29 | B34: Start_Latitude
A35: 30 | B35: Start_Longitude
A36: 31 | B36: End_Latitude
A37: 32 | B37: End_Longitude
A38: 33 | B38: Wall Length | C38: Feet
A39: 34 | B39: Ice Scour | D39: Subjective - Does SSP have a lot of scour from ice?
A40: 35 | B40: Algal Growth | D40: Subjective - Does SSP have heavy algal buildup in summer?
A41: 36 | B41: Sun Exposure | D41: Low for north facing; High for south facing
A42: 37 | B42: Zebra Mussels Present | C42: Y/N
A43: 38 | B43: Zebra Mussel Descriptor | D43: Degree of zebra mussel infestation; location on substrate.
A44: 39 | B44: Activity Level | D44: Subjective - Does SSP have a lot of resuspension/ship traffic?
A45: 40 | B45: Wall Corrosion Description | D45: Description of where wall appears to be experiencing highest corrosion I.e. Pitting at 4-6 feet;
A46: 41 | B46: Estimated Year for Replacement | C46: Year
A47: 42 | B47: Estimated Replacement Cost | C47: $
A48: 43 | B48: Surfacing Behind Wall | D48: fill, granular, deck, etc.
A49: 44 | B49: Structure Type | D49: lock wall, lock guide wall, guard wall, harbor wall, channel wall, cell wall, guard wall, transition or retaining wall, etc.
A50: 45 | B50: Type of Wall | D50: cellular, anchored or cantilever
A51: 46 | B51: Wall Loadings | D51: station, loading (psf), distance from wall, description of load
A52: 47 | B52: Misalignment | D52: dist from normal and station
A53: 48 | B53: Settlement (fill) | D53: dist from normal and station
A54: 49 | B54: Holes | D54: length, width, station, dist from top of wall
A55: 50 | B55: Dents | D55: station, length, width, depth, dist from top of wall
A56: 51 | B56: Cracks | D56: station, length, width, dist from top of wall
A57: 52 | B57: Interlock Separation | D57: station, length, from top of wall
A58: 53 | B58: Cavity Formation | D58: station, length, width, depth, dist from top of wall
A59: 54 | B59: Condition Index | D59: calculated based on other entries
A60: 55 | B60: Structural Capacity Calculations | D60: anchor load, bending, sliding, bursting, etc.

Sheet Station ID
A1: S/N | B1: Structure ID | C1: Facility | D1: City | E1: Coordinates NAD 83
D2: City | E2: North | F2: Easting
A3: 1 | B3: DE1i | C3: Duluth Entry | D3: Duluth | E3: 432176.08 | F3: 2878076.33
A4: 2 | B4: DE1o | C4: Duluth Entry | D4: Duluth | E4: 432176.08 | F4: 2878076.33
A5: 3 | B5: DE2i | C5: Duluth Entry | D5: Duluth | E5: 432176.98 | F5: 2878145.92
A6: 4 | B6: DE2o | C6: Duluth Entry | D6: Duluth | E6: 432176.98 | F6: 2878145.92
A7: 5 | B7: DE3i | C7: Duluth Entry | D7: Duluth | E7: 431968.91 | F7: 2877730.99
A8: 6 | B8: DE3o | C8: Duluth Entry | D8: Duluth | E8: 431968.91 | F8: 2877730.99
A9: 7 | B9: DE4i | C9: Duluth Entry | D9: Duluth | E9: 431759.93 | F9: 2877246.47
A10: 8 | B10: DE4o | C10: Duluth Entry | D10: Duluth | E10: 431759.93 | F10: 2877246.47
A11: 9 | B11: DE5i | C11: Duluth Entry | D11: Duluth | E11: 431650.46 | F11: 2876621.42
A12: 10 | B12: DE5o | C12: Duluth Entry | D12: Duluth | E12: 431650.46 | F12: 2876621.42
A13: 11 | B13: DE6i | C13: Duluth Entry | D13: Duluth | E13: 431147.54 | F13: 2876906.4
A14: 12 | B14: DE6o | C14: Duluth Entry | D14: Duluth | E14: 431147.54 | F14: 2876906.4
A15: 13 | B15: DE7i | C15: Duluth Entry | D15: Duluth | E15: 431458.73 | F15: 2877459.23
A16: 14 | B16: DE7o | C16: Duluth Entry | D16: Duluth | E16: 431458.73 | F16: 2877459.23
A17: 15 | B17: DE8i | C17: Duluth Entry | D17: Duluth | E17: 431666.8 | F17: 2877874.16
A18: 16 | B18: DE8o | C18: Duluth Entry | D18: Duluth | E18: 431666.8 | F18: 2877874.16
A19: 17 | B19: DE9i | C19: Duluth Entry | D19: Duluth | E19: 431771.75 | F19: 2878151.22
A20: 18 | B20: DE9o | C20: Duluth Entry | D20: Duluth | E20: 431771.75 | F20: 2878151.22
A21: 19 | B21: DE10i | C21: Duluth Entry | D21: Duluth | E21: 431874.88 | F21: 2878289.09
A22: 20 | B22: DE10o | C22: Duluth Entry | D22: Duluth | E22: 431874.88 | F22: 2878289.09
A23: 21 | B23: VY1i | C23: ACOE Vessel Yard | D23: Duluth | E23: 430138.07 | F23: 2877198.01
A24: 22 | B24: VY1o | C24: ACOE Vessel Yard | D24: Duluth | E24: 430138.07 | F24: 2877198.01
A25: 23 | B25: VY2i | C25: ACOE Vessel Yard | D25: Duluth | E25: 430138.07 | F25: 2877138.98
A26: 24 | B26: VY2o | C26: ACOE Vessel Yard | D26: Duluth | E26: 430138.07 | F26: 2877138.98
A27: 25 | B27: EP1o | C27: Erie Pier | D27: Duluth | E27: 416396.27 | F27: 2864280.55
A28: 26 | B28: EP2o | C28: Erie Pier | D28: Duluth | E28: 416596.3 | F28: 2864069.1
A29: 27 | B29: CGA1o | C29: Coast Guard Range Cell | D29: in harbor | E29: 415280.99 | F29: 2864224.67
A30: 28 | B30: CGB1o- ALT. | C30: Coast Guard Range Cell | D30: in harbor | E30: 409813.64 | F30: 2864570.99
A31: 29 | B31: CGC1o | C31: Coast Guard Range Cell | D31: in harbor | E31: 405407.36 | F31: 2891809.71
A32: 30 | B32: SE1o | C32: Superior Entry | D32: Superior | E32: 406623.93 | F32: 2899111.48
A33: 31 | B33: SE2o | C33: Superior Entry | D33: Superior | E33: 407124.57 | F33: 2898686.2
A34: 32 | B34: SE7i | C34: Superior Entry | D34: Superior | E34: 405588.23 | F34: 2897522.94
A35: 33 | B35: SE7o | C35: Superior Entry | D35: Superior | E35: 405588.23 | F35: 2897522.94
A36: 34 | B36: SE8i | C36: Superior Entry | D36: Superior | E36: 405586.27 | F36: 2897383.56
A37: 35 | B37: SE8o | C37: Superior Entry | D37: Superior | E37: 405586.27 | F37: 2897383.56
A38: 36 | B38: SE9o | C38: Superior Entry | D38: Superior | E38: 405377.78 | F38: 2896968.26
A39: 37 | B39: SE10i | C39: Superior Entry | D39: Superior | E39: 404560.46 | F39: 2896491.78
A40: 38 | B40: SE10o | C40: Superior Entry | D40: Superior | E40: 404560.46 | F40: 2896491.78
A41: 39 | B41: SE3w | C41: Superior Entry * | D41: Superior | E41: 46.7085 | F41: 92.01445
A42: 40 | B42: SE4w | C42: Superior Entry * | D42: Superior | E42: 46.70795 | F42: 92.015
A43: 41 | B43: SE5w | C43: Superior Entry * | D43: Superior | E43: 46.7071 | F43: 92.0169
A44: 42 | B44: SE6w | C44: Superior Entry * | D44: Superior | E44: 46.7068 | F44: 92.01985
A45: 43 | B45: Berth 1 | C45: DSPA | D45: Duluth | E45: 423823.46 | F45: 2874703.78
A46: 44 | B46: Berth 4 | C46: DSPA | D46: Duluth | E46: 423742.88 | F46: 2876306.47
A47: 45 | B47: Berth 6 | C47: DSPA | D47: Duluth | E47: 421922.92 | F47: 2876608.68
A48: 46 | B48: MN SLIP | C48: William A Irvin Slip | D48: Duluth | E48: 433159.25 | F48: 2875766.56
A49: 47 | B49: DECC | C49: DECC | D49: Duluth | E49: 431637.81 | F49: 2875647.06
A50: 48 | B50: Cargill | C50: Cargill | D50: Duluth | E50: 427969.09 | F50: 2874023.69
A51: 49 | B51: Hallett Dock 5 | C51: Hallett Dock 5 | D51: Duluth | E51: 419169.78 | F51: 2867310.97
A52: 50 | B52: Bong Bridge Cell | C52: Bong Bridge Cell | D52: in harbor | E52: 413964.8 | F52: 2864310.61
A53: 51 | B53: Hallett Dock 7 | C53: Hallett Dock 7 | D53: Duluth | E53: 409554.66 | F53: 2859974.87
A54: 52 | B54: Spirit Lake Marina | C54: Spirit Lake Marina | D54: Duluth | E54: 404975.32 | F54: 2849784.17
A55: 53 | B55: Oliver Bridge | C55: Oliver Bridge | D55: Oliver | E55: 386435.1 | F55: 2849999.38
A56: 54 | B56: Midwest Energy | C56: Midwest Energy | D56: Superior | E56: 418212.1 | F56: 2871711.3
A57: 55 | B57: CHS1 | C57: Cenex Harvest States | D57: Superior | E57: 417248.21 | F57: 2875554.9
A58: 56 | B58: CHS2 | C58: Cenex Harvest States | D58: Superior | E58: 417035.69 | F58: 2874791.38
A59: 57 | B59: CHS3 | C59: Cenex Harvest States | D59: Superior | E59: 417238.31 | F59: 2874788.77
A60: 58 | B60: Cutler Magner | C60: Cutler Magner | D60: Superior | E60: 414778.27 | F60: 2880394.06
A61: 59 | B61: LBB1 | C61: Lakehead Boat Basin | D61: Duluth | E61: 429731.93 | F61: 2877133.69
A62: 60 | B62: LBB2 | C62: Lakehead Boat Basin | D62: Duluth | E62: 429732.93 | F62: 2877133.68
A63: 61 | B63: Community Sailing Dock | C63: Community Sailing Dock | D63: Duluth | E63: 414553.36 | F63: 2886319.03
A64: 62 | B64: Two Harbors | C64: CN/DMIR Two Harbors | D64: Two Harbors | E64: 519325.09 | F64: 2981162.01
A65: 63 | B65: Station 014 * | C65: St Louis River @ Hwy 39 bridge between Oliver and Duluth | D65: St Louis | E65: 464036 | F65: 921209
A66: 64 | B66: Site 030 * | C66: St Louis Bay @ Lake Superior | D66: St Louis | E66: 464505 | F66: 920600
A67: 65 | B67: LSSL-19-CB15E53 * | C67: St Louis River @ the MN Hwy 23 at Fond du Lac | D67: St Louis | E67: 463931 | F67: 921704
A68: 66 | B68: SD003 | C68: Ispat Inland Steel Mining - Laurentian | D68: St Louis
A69: 67 | B69: SL 27 | C69: St Louis River @ Burlington N^R.R. BR | D69: St Louis
A70: 68 | B70: SL 191 | C70: St Louis River @ SH-23 Bridge | D70: St Louis
A71: 69 | B71: S000-277 | C71: St Louis Bay Below I-535 Bridge @ Superior, WI | D71: St Louis
A72: 70 | B72: SL 00 | C72: WLSSD St Louis | D72: St Louis
A73: 71 | B73: SL 135 | C73: WLSSD St Louis | D73: St Louis
A74: 72 | B74: SL 191 | C74: WLSSD St Louis | D74: St Louis
A75: 73 | B75: SL 207 | C75: WLSSD St Louis | D75: St Louis
A76: 74 | B76: SL 23 | C76: WLSSD St Louis | D76: St Louis
A77: 75 | B77: SL 241N | C77: WLSSD St Louis | D77: St Louis
A78: 76 | B78: SL 241S | C78: WLSSD St Louis | D78: St Louis
A79: 77 | B79: SL 259 | C79: WLSSD St Louis | D79: St Louis
A80: 78 | B80: SL261 | C80: WLSSD St Louis | D80: St Louis
A81: 79 | B81: SL27 | C81: WLSSD St Louis | D81: St Louis
A82: 80 | B82: SL 297 | C82: WLSSD St Louis | D82: St Louis
A83: 81 | B83: SL 303 | C83: WLSSD St Louis | D83: St Louis
A84: 82 | B84: SL 334 | C84: WLSSD St Louis | D84: St Louis
A85: 83 | B85: SL 336N | C85: WLSSD St Louis | D85: St Louis
A86: 84 | B86: SL 500 | C86: WLSSD St Louis | D86: St Louis
A87: 85 | B87: SL 63 | C87: WLSSD St Louis | D87: St Louis
C89: * - latitude and longitude

Sheet Structural Data Entry Form
A1: Section ID | B1: Record_N | C1: Facility | D1: City | E1: Location | F1: Facility Information | G1: Owner | H1: Manufacturer | I1: Type | J1: Era Installed | K1: Year Installed | L1: Original Thickness (in) | M1: Type (HR/CR) | N1: Capped (Y/N) | O1: ASTM Spec | P1: Current Thickness (in) | Q1: Thickness Measurement Date | R1: Instantaneous Corrosion Rate (mils/year) | S1: Date Corrosion Measured | T1: Inspection Date | U1: Depth Driven (Feet) | V1: Average Water Depth (Feet) | W1: Dredge depth (Feet) | X1: Coating Y/N | Y1: Year Coated | Z1: Coating_Name | AA1: Coating_Manufacturer | AB1: Coating_Type | AC1: Location | AD1: Start_Latitude | AE1: Start_Longitude | AF1: End_Latitude | AG1: End_Longitude | AH1: Wall Length (Feet) | AI1: Ice Scour | AJ1: Algal Growth | AK1: Sun Exposure | AL1: Zebra Mussels Present (Y/N) | AM1: Zebra Mussel Descriptor | AN1: Activity Level | AO1: Wall Corrosion Description | AP1: Estimated Year for Replacement | AQ1: Estimated Replacement Cost ($) | AR1: Surfacing Behind Wall | AS1: Structure Type | AT1: Type of Wall | AU1: Wall Loadings | AV1: Misalignment | AW1: Settlement (fill) | AX1: Holes | AY1: Dents | AZ1: Cracks | BA1: Interlock Separation | BB1: Cavity Formation | BC1: Condition Index | BD1: Structural Capacity Calculations
A2: DE1i | B2: 1 | C2: Duluth Entry | D2: Duluth | E2: Wall | F2: Harbor Entry | G2: USACOE | H2: Bethlehem | I2: PZ-35 | J2: Late 1980s | K2: 1986-87 | L2: f-.6, w-.5 | M2: HR | N2: Y | O2: A328 | P2: 0.535 | Q2: 2006-08-21 | T2: 2006-08-21 | U2: 55 | V2: 20 | W2: 20 | X2: N | Y2: N/A | Z2: N/A | AA2: N/A | AB2: N/A | AC2: N/A | AD2: 46°46'48.36"N | AE2: 92°05'27.68"N | AF2: 46°46'51.26"N | AG2: 92°05'18.33"N | AI2: N | AJ2: N | AK2: Low | AL2: N | AM2: 0 | AN2: High | AO2: pitting -2to-6 | AP2: =(P2/($R$18*7.5*0.001))+2006 -> 2087.139348 | AQ2: =AH2*2500 -> 0 | AR2: deck | AS2: channel wall | AT2: anchored | AU2: design surcharge: 300psf | AV2: N | AW2: N | AX2: N | AY2: N | AZ2: N | BA2: N | BB2: N
A3: DE1o | B3: 2 | C3: Duluth Entry | D3: Duluth | E3: Wall | F3: Harbor Entry | G3: USACOE | H3: Bethlehem | I3: PZ-35 | J3: Late 1980s | K3: 1986-87 | L3: f-.6, w-.5 | M3: HR | N3: Y | O3: A328 | P3: 0.537 | Q3: 2006-08-21 | T3: 2006-08-21 | U3: 55 | V3: 20 | W3: 20 | X3: N | Y3: N/A | Z3: N/A | AA3: N/A | AB3: N/A | AC3: N/A | AD3: 46°46'48.36"N | AE3: 92°05'27.68"N | AF3: 46°46'51.26"N | AG3: 92°05'18.33"N | AH3: 750 | AI3: N | AJ3: N | AK3: Low | AL3: N | AM3: 0 | AN3: High | AO3: pitting -2to-6 | AP3: =(P3/($R$18*7.5*0.001))+2006 -> 2087.442673 | AQ3: =AH3*2500 -> 1875000 | AR3: deck | AS3: channel wall | AT3: anchored | AU3: design surcharge: 300psf | AV3: N | AW3: N | AX3: N | AY3: N | AZ3: N | BA3: N | BB3: N
A4: DE2i | B4: 3 | C4: Duluth Entry | D4: Duluth | E4: Wall | F4: Harbor Entry | G4: USACOE | H4: Bethlehem | I4: PZ-35 | J4: Late 1980s | K4: 1986-87 | L4: f-.6, w-.5 | M4: HR | N4: Y | O4: A328 | P4: 0.513 | Q4: 2006-08-21 | T4: 2006-08-21 | U4: 55 | V4: 30 | W4: 32 | X4: N | Y4: N/A | Z4: N/A | AA4: N/A | AB4: N/A | AC4: N/A | AD4: 46°46'49.32"N | AE4: 92°05'22.93"N | AF4: 46°46'51.02"N | AG4: 92°05'17.50"N | AI4: N | AJ4: N | AK4: High | AL4: Y | AM4: Very Low | AN4: High | AO4: pitting -2to-6 | AP4: 2083.802777 | AQ4: 0 | AR4: deck | AS4: channel wall | AT4: anchored | AU4: design surcharge: 300psf | AV4: N | AW4: N | AX4: N | AY4: N | AZ4: N | BA4: N | BB4: N
A5: DE2o | B5: 4 | C5: Duluth Entry | D5: Duluth | E5: Wall | F5: Harbor Entry | G5: USACOE | H5: Bethlehem | I5: PZ-35 | J5: Late 1980s | K5: 1986-87 | L5: f-.6, w-.5 | M5: HR | N5: Y | O5: A328 | P5: 0.513 | Q5: 2006-08-21 | T5: 2006-08-21 | U5: 55 | V5: 30 | W5: 32 | X5: N | Y5: N/A | Z5: N/A | AA5: N/A | AB5: N/A | AC5: N/A | AD5: 46°46'49.32"N | AE5: 92°05'22.93"N | AF5: 46°46'51.02"N | AG5: 92°05'17.50"N | AH5: 550 | AI5: N | AJ5: N | AK5: High | AL5: N | AM5: 0 | AN5: High | AO5: pitting -2to-6 | AP5: 2083.802777 | AQ5: 1375000 | AR5: deck | AS5: channel wall | AT5: anchored | AU5: design surcharge: 300psf | AV5: N | AW5: N | AX5: N | AY5: N | AZ5: N | BA5: N | BB5: N
A6: DE3i | B6: 5 | C6: Duluth Entry | D6: Duluth | E6: Wall | F6: Harbor Entry | G6: USACOE | H6: Bethlehem | I6: PZ-35 | J6: Late 1980s | K6: 1986-87 | L6: f-.6, w-.5 | M6: HR | N6: Y | O6: A328 | P6: 0.544 | Q6: 2006-08-21 | T6: 2006-08-21 | U6: 53 | V6: 30 | W6: 32 | X6: N | Y6: N/A | Z6: N/A | AA6: N/A | AB6: N/A | AC6: N/A | AD6: 46°46'47.07"N | AE6: 92°05'30.37"N | AF6: 46°46'49.32"N | AG6: 92°05'22.93"N | AI6: N | AJ6: N | AK6: High | AL6: Y | AM6: Very Low | AN6: High | AO6: pitting -2to-6 | AP6: 2088.504309 | AQ6: 0 | AR6: deck | AS6: channel wall | AT6: anchored | AU6: design surcharge: 300psf | AV6: N | AW6: N | AX6: N | AY6: N | AZ6: N | BA6: N | BB6: N
A7: DE3o | B7: 6 | C7: Duluth Entry | D7: Duluth | E7: Wall | F7: Harbor Entry | G7: USACOE | H7: Bethlehem | I7: PZ-35 | J7: Late 1980s | K7: 1986-87 | L7: f-.6, w-.5 | M7: HR | N7: Y | O7: A328 | P7: 0.512 | Q7: 2006-08-21 | T7: 2006-08-21 | U7: 53 | V7: 30 | W7: 32 | X7: N | Y7: N/A | Z7: N/A | AA7: N/A | AB7: N/A | AC7: N/A | AD7: 46°46'47.07"N | AE7: 92°05'30.37"N | AF7: 46°46'49.32"N | AG7: 92°05'22.93"N | AH7: 550 | AI7: N | AJ7: N | AK7: High | AL7: Y | AM7: Very Low | AN7: High | AO7: pitting -2to-6 | AP7: 2083.651114 | AQ7: 1375000 | AR7: deck | AS7: channel wall | AT7: anchored | AU7: design surcharge: 300psf | AV7: N | AW7: N | AX7: N | AY7: N | AZ7: N | BA7: N | BB7: N
A8: DE4i | B8: 7 | C8: Duluth Entry | D8: Duluth | E8: Wall | F8: Harbor Entry | G8: USACOE | H8: Bethlehem | I8: PZ-35 | J8: Late 1980s | K8: 1986-87 | L8: f-.6, w-.5 | M8: HR | N8: Y | O8: A328 | P8: 0.555 | Q8: 2006-08-21 | T8: 2006-08-21 | U8: 53 | V8: 30 | W8: 32 | X8: N | Y8: N/A | Z8: N/A | AA8: N/A | AB8: N/A | AC8: N/A | AD8: 46°46'45.63"N | AE8: 92°05'35.04"N | AF8: 46°46'47.07"N | AG8: 92°05'30.31"N | AI8: N | AJ8: N | AK8: High | AL8: Y | AM8: Mod | AN8: High | AO8: pitting -2to-6 | AP8: 2090.172595 | AQ8: 0 | AR8: deck | AS8: channel wall | AT8: anchored | AU8: design surcharge: 300psf | AV8: N | AW8: N | AX8: N | AY8: N | AZ8: N | BA8: N | BB8: N
A9: DE4o | B9: 8 | C9: Duluth Entry | D9: Duluth | E9: Wall | F9: Harbor Entry | G9: USACOE | H9: Bethlehem | I9: PZ-35 | J9: Late 1980s | K9: 1986-87 | L9: f-.6, w-.5 | M9: HR | N9: Y | O9: A328 | P9: 0.559 | Q9: 2006-08-21 | T9: 2006-08-21 | U9: 53 | V9: 30 | W9: 32 | X9: N | Y9: N/A | Z9: N/A | AA9: N/A | AB9: N/A | AC9: N/A | AD9: 46°46'45.63"N | AE9: 92°05'35.04"N | AF9: 46°46'47.07"N | AG9: 92°05'30.31"N | AH9: 500 | AI9: N | AJ9: N | AK9: High | AL9: Y | AM9: High | AN9: High | AO9: pitting -2to-6 | AP9: 2090.779244 | AQ9: 1250000 | AR9: deck | AS9: channel wall | AT9: anchored | AU9: design surcharge: 300psf | AV9: N | AW9: N | AX9: N | AY9: N | AZ9: N | BA9: N | BB9: N
A10: DE5i | B10: 9 | C10: Duluth Entry | D10: Duluth | E10: Wall | F10: Harbor Entry | G10: USACOE | H10: Bethlehem | I10: PZ-35 | J10: Late 1980s | K10: 1986-87 | L10: f-.6, w-.5 | M10: HR | N10: Y | O10: A328 | P10: 0.489 | Q10: 2006-08-23 | T10: 2006-08-23 | U10: 49.5 | V10: 20 | W10: 28 | X10: N | Y10: N/A | Z10: N/A | AA10: N/A | AB10: N/A | AC10: N/A | AD10: 46°46'47.10"N | AE10: 92°05'41.03"N | AF10: 46°46'45.38"N | AG10: 92°05'39.88"N | AI10: N | AJ10: N | AK10: Low | AL10: Y | AM10: Low | AN10: High | AO10: pitting -2to-6 | AP10: 2080.162881 | AQ10: 0 | AR10: deck | AS10: channel wall | AT10: anchored | AU10: design surcharge: 300psf | AV10: N | AW10: N | AX10: N | AY10: N | AZ10: N | BA10: N | BB10: N
A11: DE5o | B11: 10 | C11: Duluth Entry | D11: Duluth | E11: Wall | F11: Harbor Entry | G11: USACOE | H11: Bethlehem | I11: PZ-35 | J11: Late 1980s | K11: 1986-87 | L11: f-.6, w-.5 | M11: HR | N11: Y | O11: A328 | P11: 0.469 | Q11: 2006-08-23 | T11: 2006-08-23 | U11: 49.5 | V11: 20 | W11: 28 | X11: N | Y11: N/A | Z11: N/A | AA11: N/A | AB11: N/A | AC11: N/A | AD11: 46°46'47.10"N | AE11: 92°05'41.03"N | AF11: 46°46'45.38"N | AG11: 92°05'39.88"N | AH11: 500 | AI11: N | AJ11: N | AK11: Low | AL11: Y | AM11: Low | AN11: High | AO11: pitting -2to-6 | AP11: 2077.129634 | AQ11: 1250000 | AR11: deck | AS11: channel wall | AT11: anchored | AU11: design surcharge: 300psf | AV11: N | AW11: N | AX11: N | AY11: N | AZ11: N | BA11: N | BB11: N
A12: DE6i | B12: 11 | C12: Duluth Entry | D12: Duluth | E12: Wall | F12: Harbor Entry | G12: USACOE | H12: Bethlehem | I12: PZ-35 | J12: Late 1980s | K12: 1986-87 | L12: f-.6, w-.5 | M12: HR | N12: Y | O12: A328 | P12: 0.514 | Q12: 2006-08-23 | T12: 2006-08-23 | U12: 49.5 | V12: 24 | W12: 28 | X12: N | Y12: N/A | Z12: N/A | AA12: N/A | AB12: N/A | AC12: N/A | AD12: 46°46'40.61"N | AE12: 92°05'36.62"N | AF12: 46°46'42.83"N | AG12: 92°05'33.49"N | AI12: N | AJ12: N | AK12: Low | AL12: Y | AM12: Mod | AN12: High | AO12: pitting -2to-6 | AP12: 2083.954439 | AQ12: 0 | AR12: deck | AS12: channel wall | AT12: anchored | AU12: design surcharge: 300psf | AV12: N | AW12: N | AX12: N | AY12: N | AZ12: N | BA12: N | BB12: N
A13: DE6o | B13: 12 | C13: Duluth Entry | D13: Duluth | E13: Wall | F13: Harbor Entry | G13: USACOE | H13: Bethlehem | I13: PZ-35 | J13: Late 1980s | K13: 1986-87 | L13: f-.6, w-.5 | M13: HR | N13: Y | O13: A328 | P13: 0.467 | Q13: 2006-08-23 | T13: 2006-08-23 | U13: 49.5 | V13: 24 | W13: 28 | X13: N | Y13: N/A | Z13: N/A | AA13: N/A | AB13: N/A | AC13: N/A | AD13: 46°46'40.61"N | AE13: 92°05'36.62"N | AF13: 46°46'42.83"N | AG13: 92°05'33.49"N | AH13: 500 | AI13: N | AJ13: N | AK13: Low | AL13: Y | AM13: Mod | AN13: High | AO13: pitting -2to-6 | AP13: 2076.826309 | AQ13: 1250000 | AR13: deck | AS13: channel wall | AT13: anchored | AU13: design surcharge: 300psf | AV13: N | AW13: N | AX13: N | AY13: N | AZ13: N | BA13: N | BB13: N
A14: DE7i | B14: 13 | C14: Duluth Entry | D14: Duluth | E14: Wall | F14: Harbor Entry | G14: USACOE | H14: Bethlehem | I14: PZ-35 | J14: Late 1980s | K14: 1986-87 | L14: f-.6, w-.5 | M14: HR | N14: Y | O14: A328 | P14: 0.585 | Q14: 2006-09-01 | T14: 2006-09-01 | U14: 53 | V14: 26 | W14: 28 | X14: N | Y14: N/A | Z14: N/A | AA14: N/A | AB14: N/A | AC14: N/A | AD14: 46°46'42.83"N | AE14: 92°05'33.49"N | AF14: 46°46'44.31"N | AG14: 92°05'28.95"N | AI14: N | AJ14: N | AK14: Low | AL14: Y | AM14: Low | AN14: High | AO14: pitting -2to-6 | AP14: 2094.722465 | AQ14: 0 | AR14: deck | AS14: channel wall | AT14: anchored | AU14: design surcharge: 300psf | AV14: N | AW14: N | AX14: N | AY14: N | AZ14: N | BA14: N | BB14: N
A15: DE7o | B15: 14 | C15: Duluth Entry | D15: Duluth | E15: Wall | F15: Harbor Entry | G15: USACOE | H15: Bethlehem | I15: PZ-35 | J15: Late 1980s | K15: 1986-87 | L15: f-.6, w-.5 | M15: HR | N15: Y | O15: A328 | P15: 0.526 | Q15: 2006-09-01 | T15: 2006-09-01 | U15: 53 | V15: 26 | W15: 28 | X15: N | Y15: N/A | Z15: N/A | AA15: N/A | AB15: N/A | AC15: N/A | AD15: 46°46'42.83"N | AE15: 92°05'33.49"N | AF15: 46°46'44.31"N | AG15: 92°05'28.95"N | AH15: 500 | AI15: N | AJ15: N | AK15: Low | AL15: Y | AM15: Low | AN15: High | AO15: pitting -2to-6 | AP15: 2085.774387 | AQ15: 1250000 | AR15: deck | AS15: channel wall | AT15: anchored | AU15: design surcharge: 300psf | AV15: N | AW15: N | AX15: N | AY15: N | AZ15: N | BA15: N | BB15: N
A16: DE8i | B16: 15 | C16: Duluth Entry | D16: Duluth | E16: Wall | F16: Harbor Entry | G16: USACOE | H16: Bethlehem | I16: PZ-35 | J16: Late 1980s | K16: 1986-87 | L16: f-.6, w-.5 | M16: HR | N16: Y | O16: A328 | P16: 0.578 | Q16: 2006-09-01 | T16: 2006-09-01 | U16: 53 | V16: 26 | W16: 28 | X16: N | Y16: N/A | Z16: N/A | AA16: N/A | AB16: N/A | AC16: N/A | AD16: 46°46'44.31"N | AE16: 92°05'28.95"N | AF16: 46°46'46.26"N | AG16: 92°05'22.90"N | AI16: N | AJ16: N | AK16: Low | AL16: N | AM16: 0 | AN16: High | AO16: pitting -2to-6 | AP16: 2093.660828 | AQ16: 0 | AR16: deck | AS16: channel wall | AT16: anchored | AU16: design surcharge: 300psf | AV16: N | AW16: N | AX16: N | AY16: N | AZ16: N | BA16: N | BB16: N
A17: DE8o | B17: 16 | C17: Duluth Entry | D17: Duluth | E17: Wall | F17: Harbor Entry | G17: USACOE | H17: Bethlehem | I17: PZ-35 | J17: Late 1980s | K17: 1986-87 | L17: f-.6, w-.5 | M17: HR | N17: Y | O17: A328 | P17: 0.448 | Q17: 2006-09-01 | T17: 2006-09-01 | U17: 53 | V17: 26 | W17: 28 | X17: N | Y17: N/A | Z17: N/A | AA17: N/A | AB17: N/A | AC17: N/A | AD17: 46°46'44.31"N | AE17: 92°05'28.95"N | AF17: 46°46'46.26"N | AG17: 92°05'22.90"N | AH17: 550 | AI17: N | AJ17: N | AK17: Low | AL17: N | AM17: 0 | AN17: High | AO17: pitting -2to-6 | AP17: 2073.944725 | AQ17: 1375000 | AR17: deck | AS17: channel wall | AT17: anchored | AU17: design surcharge: 300psf | AV17: N | AW17: N | AX17: N | AY17: N | AZ17: N | BA17: N | BB17: N
A18: DE9i | B18: 17 | C18: Duluth Entry | D18: Duluth | E18: Wall | F18: Harbor Entry | G18: USACOE | H18: Bethlehem | I18: PZ-35 | J18: Late 1980s | K18: 1986-87 | L18: f-.6, w-.5 | M18: HR | N18: Y | O18: A328 | P18: 0.564 | Q18: 2006-08-22 | R18: 0.879146 | S18: 2006-11-28 | T18: 2006-08-22 | U18: 53 | V18: 20 | W18: 20 | X18: N | Y18: N/A | Z18: N/A | AA18: N/A | AB18: N/A | AC18: N/A | AD18: 46°46'46.26"N | AE18: 92°05'22.90"N | AF18: 46°46'48.60"N | AG18: 92°05'15.79"N | AI18: N | AJ18: N | AK18: Low | AL18: N | AM18: 0 | AN18: High | AO18: pitting -2to-6 | AP18: 2091.537556 | AQ18: 0 | AR18: deck | AS18: channel wall | AT18: anchored | AU18: design surcharge: 300psf | AV18: N | AW18: N | AX18: N | AY18: N | AZ18: N | BA18: N | BB18: N
A19: DE9o | B19: 18 | C19: Duluth Entry | D19: Duluth | E19: Wall | F19: Harbor Entry | G19: USACOE | H19: Bethlehem | I19: PZ-35 | J19: Late 1980s | K19: 1986-87 | L19: f-.6, w-.5 | M19: HR | N19: Y | O19: A328 | P19: 0.557 | Q19: 2006-08-22 | T19: 2006-08-22 | U19: 55 | V19: 20 | W19: 20 | X19: N | Y19: N/A | Z19: N/A | AA19: N/A | AB19: N/A | AC19: N/A | AD19: 46°46'46.26"N | AE19: 92°05'22.90"N | AF19: 46°46'48.60"N | AG19: 92°05'15.79"N | AH19: 550 | AI19: N | AJ19: N | AK19: Low | AL19: N | AM19: 0 | AN19: High | AO19: pitting -2to-6 | AP19: 2090.475919 | AQ19: 1375000 | AR19: deck | AS19: channel wall | AT19: anchored | AU19: design surcharge: 300psf | AV19: N | AW19: N | AX19: N | AY19: N | AZ19: N | BA19: N | BB19: N
A20: DE10i | B20: 19 | C20: Duluth Entry | D20: Duluth | E20: Wall | F20: Harbor Entry | G20: USACOE | H20: Bethlehem | I20: PZ-35 | J20: Late 1980s | K20: 1986-87 | L20: f-.6, w-.5 | M20: HR | N20: Y | O20: A328 | P20: 0.459 | Q20: 2006-08-22 | T20: 2006-08-22 | U20: 55 | V20: 30 | W20: 32 | X20: N | Y20: N/A | Z20: N/A | AA20: N/A | AB20: N/A | AC20: N/A | AD20: 46°46'43.62"N | AE20: 92°05'29.84"N | AF20: 46°46'47.82"N | AG20: 92°05'16.68"N | AI20: N | AJ20: N | AK20: High | AL20: Y | AM20: Very Low | AN20: High | AO20: pitting -2to-6 | AP20: 2075.613011 | AQ20: 0 | AR20: deck | AS20: channel wall | AT20: anchored | AU20: design surcharge: 300psf | AV20: N | AW20: N | AX20: N | AY20: N | AZ20: N | BA20: N | BB20: N
A21: DE10o | B21: 20 | C21: Duluth Entry | D21: Duluth | E21: Wall | F21: Harbor Entry | G21: USACOE | H21: Bethlehem | I21: PZ-35 | J21: Late 1980s | K21: 1986-87 | L21: f-.6, w-.5 | M21: HR | N21: Y | O21: A328 | P21: 0.488 | Q21: 2006-08-22 | T21: 2006-08-22 | U21: 55 | V21: 30 | W21: 32 | X21: N | Y21: N/A | Z21: N/A | AA21: N/A | AB21: N/A | AC21: N/A | AD21: 46°46'43.62"N | AE21: 92°05'29.84"N | AF21: 46°46'47.82"N | AG21: 92°05'16.68"N | AH21: 1100 | AI21: N | AJ21: N | AK21: High | AL21: N | AM21: 0 | AN21: High | AO21: pitting -2to-6 | AP21: 2080.011218 | AQ21: 2750000 | AR21: deck | AS21: channel wall | AT21: anchored | AU21: design surcharge: 300psf | AV21: N | AW21: N | AX21: N | AY21: N | AZ21: N | BA21: N | BB21: N
A22: VY1i | B22: 21 | C22: ACOE Vessel Yard | D22: Duluth | E22: Dock | F22: Corps boat dock | G22: USACOE | H22: Bethlehem | I22: PZ-27 | J22: Mid 1970s | K22: 1975 | L22: .375 | M22: HR | N22: Y | O22: A328 | P22: 0.31 | Q22: 2006-08-21 | T22: 2006-08-21 | U22: 26 | V22: 8 | W22: 8 | X22: N | Y22: N/A | Z22: N/A | AA22: N/A | AB22: N/A | AC22: N/A | AD22: 46°46'30.68"N | AE22: 92°05'32.21"N | AF22: 46°46'30.39"N | AG22: 92°05'21.01"N | AI22: N | AJ22: Y | AK22: High | AL22: Y | AM22: High | AN22: Low | AO22: pitting 0 to -2 | AP22: =(P22/($R$45*7.5*0.001))+2006 -> 2025.408592 | AQ22: 0 | AR22: deck | AS22: dock wall | AT22: anchored | AU22: unkNwn | AV22: N | AW22: N | AX22: N | AY22: N | AZ22: N | BA22: N | BB22: N
A23: VY1o | B23: 22 | C23: ACOE Vessel Yard | D23: Duluth | E23: Dock | F23: Corps boat dock | G23: USACOE | H23: Bethlehem | I23: PZ-27 | J23: Mid 1970s | K23: 1975 | L23: .375 | M23: HR | N23: Y | O23: A328 | P23: 0.301 | Q23: 2006-08-21 | T23: 2006-08-21 | U23: 26 | V23: 8 | W23: 8 | X23: N | Y23: N/A | Z23: N/A | AA23: N/A | AB23: N/A | AC23: N/A | AD23: 46°46'30.68"N | AE23: 92°05'32.21"N | AF23: 46°46'30.39"N | AG23: 92°05'21.01"N | AH23: 52 | AI23: N | AJ23: Y | AK23: High | AL23: Y | AM23: High | AN23: Low | AO23: pitting 0 to -2 | AP23: =(P23/($R$45*7.5*0.001))+2006 -> 2024.845117 | AQ23: 130000 | AR23: deck | AS23: dock wall | AT23: anchored | AU23: unkNwn | AV23: N | AW23: N | AX23: N | AY23: N | AZ23: N | BA23: N | BB23: N
A24: VY2i | B24: 23 | C24: ACOE Vessel Yard | D24: Duluth | E24: Dock | F24: Corps boat dock | G24: USACOE | H24: Bethlehem | I24: PZ-27 | J24: Mid 1970s | K24: 1975 | L24: .375 | M24: HR | N24: Y | O24: A328 | P24: 0.33 | Q24: 2006-08-21 | T24: 2006-08-21 | U24: 26 | V24: 6 | W24: 6 | X24: N | Y24: N/A | Z24: N/A | AA24: N/A | AB24: N/A | AC24: N/A | AD24: 46°46'30.68"N | AE24: 92°05'32.21"N | AF24: 46°46'30.51"N | AG24: 92°05'32.91"N | AI24: N | AJ24: Y | AK24: High | AL24: Y | AM24: High | AN24: Low | AO24: pitting 0 to -2 | AP24: =(P24/($R$45*7.5*0.001))+2006 -> 2026.660759 | AQ24: 0 | AR24: deck | AS24: dock wall | AT24: anchored | AU24: unkNwn | AV24: N | AW24: N | AX24: N | AY24: N | AZ24: N | BA24: N | BB24: N
A25: VY2o | B25: 24 | C25: ACOE Vessel Yard | D25: Duluth | E25: Dock | F25: Corps boat dock | G25: USACOE | H25: Bethlehem | I25: PZ-27 | J25: Mid 1970s | K25: 1975 | L25: .375 | M25: HR | N25: Y | O25: A328 | P25: 0.336 | Q25: 2006-08-21 | T25: 2006-08-21 | U25: 26 | V25: 6 | W25: 6 | X25: N | Y25: N/A | Z25: N/A | AA25: N/A | AB25: N/A | AC25: N/A | AD25: 46°46'30.68"N | AE25: 92°05'32.21"N | AF25: 46°46'30.51"N | AG25: 92°05'32.91"N | AH25: 37 | AI25: N | AJ25: Y | AK25: High | AL25: Y | AM25: High | AN25: Low | AO25: pitting 0 to -2 | AP25: =(P25/($R$45*7.5*0.001))+2006 -> 2027.036409 | AQ25: 92500 | AR25: deck | AS25: dock wall | AT25: anchored | AU25: unkNwn | AV25: N | AW25: N | AX25: N | AY25: N | AZ25: N | BA25: N | BB25: N
A26: EP1o | B26: 25 | C26: Erie Pier | D26: Duluth | E26: Dock | F26: Dredge spoils | G26: USACOE | H26: Bethlehem | I26: PZ-27 | J26: Late 1970s | K26: 1978-79 | L26: .375 | M26: HR | N26: Y | O26: A328 | P26: 0.327 | Q26: 2006-08-23 | T26: 2006-08-23 | U26: 30 | V26: 13 | W26: 15 | X26: N | Y26: N/A | Z26: N/A | AA26: N/A | AB26: N/A | AC26: N/A | AD26: 46°46'16.98"N | AE26: 92°08'40.12"N | AF26: 46°44'18.01"N | AG26: 92°08'41.68"N | AH26: 300 | AI26: N | AJ26: Y | AK26: High | AL26: Y | AM26: Mod | AN26: Low | AO26: pitting -2to-6 | AP26: =(P26/($R$50*7.5*0.001))+2006 -> 2023.214021 | AQ26: 750000 | AR26: deck | AS26: dock wall | AT26: anchored | AU26: unkNwn | AV26: N | AW26: N | AX26: N | AY26: N | AZ26: N | BA26: N | BB26: N
A27: EP2o | B27: 26 | C27: Erie Pier | D27: Duluth | E27: Dock | F27: Dredge spoils | G27: USACOE | H27: Bethlehem | I27: PZ-27 | J27: Late 1970s | K27: 1978-79 | L27: .375 | M27: HR | N27: Y | O27: A328 | P27: 0.308 | Q27: 2006-08-23 | T27: 2006-08-23 | U27: 25 | V27: 15 | W27: 15 | X27: N | Y27: N/A | Z27: N/A | AA27: N/A | AB27: N/A | AC27: N/A | AD27: 46°46'16.98"N | AE27: 92°08'40.12"N | AF27: 46°44'18.01"N | AG27: 92°08'41.68"N | AH27: 300 | AI27: N | AJ27: Y | AK27: High | AL27: Y | AM27: Mod | AN27: Low | AO27: pitting -2to-6 | AP27: =(P27/($R$50*7.5*0.001))+2006 -> 2022.213818 | AQ27: 750000 | AR27: deck | AS27: dock wall | AT27: anchored | AU27: unkNwn | AV27: N | AW27: N | AX27: N | AY27: N | AZ27: N | BA27: N | BB27: N
A28: CGA1o | B28: 27 | C28: Coast Guard Range Cell | D28: in harbor | E28: Cell | F28: Range Cell | G28: USCG | H28: US Steel | I28: PSA-23 | J28: unkNwn | K28: unkNwn | L28: .375 | M28: HR | N28: Y | O28: A328 | P28: 0.206 | Q28: 2006-08-18 | T28: 2006-08-18 | U28: 35 | V28: 10 | W28: 10 | X28: N | Y28: N/A | Z28: N/A | AA28: N/A | AB28: N/A | AC28: N/A | AD28: 46°44'08.92"N | AE28: 92°08'41.28"N | AF28: = center of | AG28: dolphin | AH28: 20'Æ | AI28: N | AJ28: N | AK28: High | AL28: Y | AM28: High | AN28: Low | AO28: pitting -2to-6 | AP28: =(P28/($R$50*7.5*0.001))+2006 -> 2016.844307 | AQ28: 300000 | AR28: deck | AS28: cell wall | AT28: cellular | AU28: N/A | AV28: N | AW28: N | AX28: .25-1"Æ | AY28: N | AZ28: N | BA28: N | BB28: Y
A29: CGB1o- ALT. | B29: 28 | C29: Coast Guard Range Cell | D29: in harbor | E29: Cell | F29: Range Cell | G29: USCG | H29: US Steel | I29: PSA-23 | J29: unkNwn | K29: unkNwn | L29: .375 | M29: HR | N29: Y | O29: A328 | P29: 0.302 | Q29: 2006-08-18 | T29: 2006-08-18 | U29: 30 | V29: 6 | W29: 6 | X29: N | Y29: N/A | Z29: N/A | AA29: N/A | AB29: N/A | AC29: N/A | AD29: 46°42'25.61"N | AE29: 92°02'07.41"N | AF29: = center of | AG29: dolphin | AH29: 20'Æ | AI29: N | AJ29: N | AK29: High | AL29: Y | AM29: Mod | AN29: Low | AO29: pitting -2to-6 | AP29: =(P29/($R$59*7.5*0.001))+2006 -> 2029.096737 | AQ29: 300000 | AR29: deck | AS29: cell wall | AT29: cellular | AU29: N/A | AV29: N | AW29: N | AX29: .25-1"Æ | AY29: N | AZ29: N | BA29: N | BB29: Y
A30: CGC1o | B30: 29 | C30: Coast Guard Range Cell | D30: in harbor | E30: Cell | F30: Range Cell | G30: USCG | H30: US Steel | I30: PSA-23 | J30: unkNwn | K30: unkNwn | L30: .375 | M30: HR | N30: Y | O30: A328 | P30: 0.283 | Q30: 2006-08-31 | T30: 2006-08-31 | U30: 30 | V30: 5 | W30: 6 | X30: N | Y30: N/A | Z30: N/A | AA30: N/A | AB30: N/A | AC30: N/A | AD30: 46°43'11.93"N | AE30: 92°08'37.30"N | AF30: = center of | AG30: dolphin | AH30: 20'Æ | AI30: N | AJ30: N | AK30: High | AL30: Y | AM30: High | AN30: Low | AO30: pitting -2to-6 | AP30: =(P30/($R$52*7.5*0.001))+2006 -> 2037.423417 | AQ30: 300000 | AR30: deck | AS30: cell wall | AT30: cellular | AU30: N/A | AV30: N | AW30: N | AX30: .25-1"Æ | AY30: N | AZ30: N | BA30: N | BB30: Y
A31: SE1o | B31: 30 | C31: Superior Entry | D31: Superior | E31: Wall | F31: Harbor Entry | G31: USACOE | H31: unkNwn | I31: Steel Plate | J31: Late 1900s | K31: 1908 | L31: 1.5 | M31: N/A | N31: Y | O31: A328 | P31: 1.163 | Q31: 2006-08-17 | T31: 2006-08-17 | U31: N/A | V31: 40 | W31: 40 | X31: N | Y31: N/A | Z31: N/A | AA31: N/A | AB31: N/A | AC31: N/A | AD31: 46°42'36.98"N | AE31: 92°00'23.21"N | AF31: 46°42'36.78"N | AG31: 92°00'22.59"N | AH31: 50 | AI31: N | AJ31: N | AK31: Low | AL31: Y | AM31: Low | AN31: Mod | AO31: pitting -1to-8 | AP31: =(P31/($R$39*7.5*0.001))+2006 -> 2091.799896 | AQ31: =AH31*2500 -> 125000 | AR31: deck | AS31: channel wall | AT31: anchored | AU31: design surcharge: 300psf | AV31: N | AW31: N | AX31: N | AY31: N | AZ31: N | BA31: N | BB31: N
A32: SE2o | B32: 31 | C32: Superior Entry | D32: Superior | E32: Wall | F32: Harbor Entry | G32: USACOE | H32: unkNwn | I32: Steel Plate | J32: Late 1900s | K32: 1908 | L32: 1.5 | M32: N/A | N32: Y | O32: A328 | P32: 1.137 | Q32: 2006-08-17 | T32: 2006-08-17 | U32: N/A | V32: 40 | W32: 40 | X32: N | Y32: N/A | Z32: N/A | AA32: N/A | AB32: N/A | AC32: N/A | AD32: 46°42'42.17"N | AE32: 92°00'28.00"N | AF32: 46°42'41.70"N | AG32: 92°00'27.93"N | AH32: 50 | AI32: N | AJ32: N | AK32: Low | AL32: Y | AM32: Low | AN32: Mod | AO32: pitting -1to-8 | AP32: =(P32/($R$39*7.5*0.001))+2006 -> 2089.881755 | AQ32: 125000 | AR32: deck | AS32: channel wall | AT32: anchored | AU32: design surcharge: 300psf | AV32: N | AW32: N | AX32: N | AY32: N | AZ32: N | BA32: N | BB32: N
A33: SE7i | B33: 32 | C33: Superior Entry | D33: Superior | E33: Wall | F33: Harbor Entry | G33: USACOE | H33: Skyline | I33: CZ 141 | J33: Late 1990s | K33: 1998-99 | L33: .413 | M33: CR | N33: Y | O33: A328 | P33: 0.371 | Q33: 2006-08-17 | T33: 2006-08-17 | U33: 42 | V33: 10 | W33: 10 | X33: N | Y33: N/A | Z33: N/A | AA33: N/A | AB33: N/A | AC33: N/A | AD33: 46°42'26.16"N | AE33: 92°00'46.32"N | AF33: 46°42'26.58"N | AG33: 92°00'45.43"N | AI33: N | AJ33: N | AK33: High | AL33: Y | AM33: Mod | AN33: Mod | AO33: pitting -2to-6 | AP33: 2033.370388 | AQ33: 0 | AR33: deck | AS33: channel wall | AT33: anchored | AU33: design surcharge: 300psf | AV33: N | AW33: N | AX33: N | AY33: N | AZ33: N | BA33: N | BB33: N
A34: SE7o | B34: 33 | C34: Superior Entry | D34: Superior | E34: Wall | F34: Harbor Entry | G34: USACOE | H34: Skyline | I34: CZ 141 | J34: Late 1990s | K34: 1998-99 | L34: .413 | M34: CR | N34: Y | O34: A328 | P34: 0.357 | Q34: 2006-08-17 | T34: 2006-08-17 | U34: 42 | V34: 10 | W34: 10 | X34: N | Y34: N/A | Z34: N/A | AA34: N/A | AB34: N/A | AC34: N/A | AD34: 46°42'26.16"N | AE34: 92°00'46.32"N | AF34: 46°42'26.58"N | AG34: 92°00'45.43"N | AH34: 100 | AI34: N | AJ34: N | AK34: High | AL34: Y | AM34: Mod | AN34: Mod | AO34: pitting -2to-6 | AP34: 2032.337543 | AQ34: 250000 | AR34: deck | AS34: channel wall | AT34: anchored | AU34: design surcharge: 300psf | AV34: N | AW34: N | AX34: N | AY34: N | AZ34: N | BA34: N | BB34: N
A35: SE8i | B35: 34 | C35: Superior Entry | D35: Superior | E35: Wall | F35: Harbor Entry | G35: USACOE | H35: Skyline | I35: CZ 141 | J35: Late 1990s | K35: 1998-99 | L35: .413 | M35: CR | N35: Y | O35: A328 | P35: 0.391 | Q35: 2006-08-17 | T35: 2006-08-17 | U35: 42 | V35: 20 | W35: 28 | X35: N | Y35: N/A | Z35: N/A | AA35: N/A | AB35: N/A | AC35: N/A | AD35: 46°42'23.93"N | AE35: 92°00'51.83"N | AF35: 46°42'26.82"N | AG35: 92°00'45.67"N | AI35: N | AJ35: N | AK35: Low | AL35: Y | AM35: Mod | AN35: Mod | AO35: pitting -2to-6 | AP35: 2034.845881 | AQ35: 0 | AR35: deck | AS35: channel wall | AT35: anchored | AU35: design surcharge: 300psf | AV35: N | AW35: N | AX35: N | AY35: N | AZ35: N | BA35: N | BB35: N
A36: SE8o | B36: 35 | C36: Superior Entry | D36: Superior | E36: Wall | F36: Harbor Entry | G36: USACOE | H36: Skyline | I36: CZ 141 | J36: Late 1990s | K36: 1998-99 | L36: .413 | M36: CR | N36: Y | O36: A328 | P36: 0.346 | Q36: 2006-08-17 | T36: 2006-08-17 | U36: 42 | V36: 20 | W36: 28 | X36: N | Y36: N/A | Z36: N/A | AA36: N/A | AB36: N/A | AC36: N/A | AD36: 46°42'23.93"N | AE36: 92°00'51.83"N | AF36: 46°42'26.82"N | AG36: 92°00'45.67"N | AH36: 520 | AI36: N | AJ36: N | AK36: Low | AL36: Y | AM36: Mod | AN36: Mod | AO36: pitting -2to-6 | AP36: 2031.526022 | AQ36: 1300000 | AR36: deck | AS36: channel wall | AT36: anchored | AU36: design surcharge: 300psf | AV36: N | AW36: N | AX36: N | AY36: N | AZ36: N | BA36: N | BB36: N
A37: SE9o | B37: 37 | C37: Superior Entry | D37: Superior | E37: Wall | F37: Harbor Entry | G37: USACOE | H37: Chapparal | I37: PZ 27 | J37: Mid 2000s | K37: 2005 | L37: .375 | M37: HR | N37: Y | O37: A328 | P37: 0.364 | Q37: 2006-08-17 | T37: 2006-08-17 | U37: 42 | V37: 24 | W37: 28 | X37: N | Y37: N/A | Z37: N/A | AA37: N/A | AB37: N/A | AC37: N/A | AD37: 46°42'20.31"N | AE37: 92°00'58.13"N | AF37: 46°42'23.93"N | AG37: 92°00'51.83"N | AH37: 540 | AI37: N | AJ37: N | AK37: Low | AL37: N | AM37: 0 | AN37: Mod | AO37: pitting -2to-6 | AP37: 2032.853966 | AQ37: 1350000 | AR37: deck | AS37: channel wall | AT37: anchored | AU37: design surcharge: 300psf | AV37: N | AW37: N | AX37: N | AY37: N | AZ37: N | BA37: N | BB37: N
A38: SE10i | B38: 38 | C38: Superior Entry | D38: Superior | E38: Wall | F38: Harbor Entry | G38: USACOE | H38: Chapparal | I38: PZ 27 | J38: Mid 2000s | K38: 2006 | L38: .375 | M38: HR | N38: Y | O38: A328 | P38: 0.369 | Q38: 2006-08-18 | T38: 2006-08-18 | U38: 42 | V38: 18 | W38: 28 | X38: N | Y38: N/A | Z38: N/A | AA38: N/A | AB38: N/A | AC38: N/A | AD38: 46°42'15.97"N | AE38: 92°01'01.36"N | AF38: 46°42'20.31"N | AG38: 92°00'58.13"N | AI38: N | AJ38: N | AK38: Low | AL38: N | AM38: 0 | AN38: Mod | AO38: pitting -2to-6 | AP38: 2033.222839 | AQ38: 0 | AR38: deck | AS38: channel wall | AT38: anchored | AU38: design surcharge: 300psf | AV38: N | AW38: N | AX38: N | AY38: N | AZ38: N | BA38: N | BB38: N
A39: SE10o | B39: 39 | C39: Superior Entry | D39: Superior | E39: Wall | F39: Harbor Entry | G39: USACOE | H39: Chapparal | I39: PZ 27 | J39: Mid 2000s | K39: 2006 | L39: .375 | M39: HR | N39: Y | O39: A328 | P39: 0.367 | Q39: 2006-08-18 | R39: 1.807306 | S39: 2006-11-28 | T39: 2006-08-18 | U39: 42 | V39: 18 | W39: 28 | X39: N | Y39: N/A | Z39: N/A | AA39: N/A | AB39: N/A | AC39: N/A | AD39: 46°42'15.97"N | AE39: 92°01'01.36"N | AF39: 46°42'20.31"N | AG39: 92°00'58.13"N | AH39: 540 | AI39: N | AJ39: N | AK39: Low | AL39: N | AM39: 0 | AN39: Mod | AO39: pitting -2to-6 | AP39: 2033.07529 | AQ39: 1350000 | AR39: deck | AS39: channel wall | AT39: anchored | AU39: design surcharge: 300psf | AV39: N | AW39: N | AX39: N | AY39: N | AZ39: N | BA39: N | BB39: N
A40: SE3w | B40: 40 | C40: Superior Entry | D40: Superior | E40: Wall | F40: Harbor Entry | G40: USACOE | H40: N Steel | I40: N Steel | J40: N/A | K40: N/A | L40: N/A | M40: N/A | N40: Y | O40: N/A | P40: N/A | Q40: N/A | T40: N steel | U40: N/A | V40: N/A | W40: N/A | X40: N | Y40: N/A | Z40: N/A | AA40: N/A | AB40: N/A | AC40: N/A | AD40: 46°42'25.10"N | AE40: 92°01'02.78"N | AF40: 46°42'30.81"N | AG40: 92°00'50.01"N | AH40: 1050 | AI40: N SSP | AJ40: N SSP | AK40: Low | AL40: N/A | AM40: N/A | AN40: Mod | AO40: N/A | AP40: N/A | AQ40: N/A | AR40: deck | AS40: channel wall | AT40: anchored | AU40: design surcharge: 300psf | AV40: N | AW40: N | AX40: N/A | AY40: N | AZ40: N | BA40: N | BB40: N
A41: SE4w | B41: 41 | C41: Superior Entry | D41: Superior | E41: Wall | F41: Harbor Entry | G41: USACOE | H41: N Steel | I41: N Steel | J41: N/A | K41: N/A | L41: N/A | M41: N/A | N41: Y | O41: N/A | P41: N/A | Q41: N/A | T41: N steel | U41: N/A | V41: N/A | W41: N/A | X41: N | Y41: N/A | Z41: N/A | AA41: N/A | AB41: N/A | AC41: N/A | AD41: 46°42'30.72"N | AE41: 92°00'49.89"N | AF41: 46°42'24.37"N | AG41: 92°01'08.46"N | AH41: 1500 | AI41: N SSP | AJ41: N SSP | AK41: High | AL41: N/A | AM41: N/A | AN41: Mod | AO41: N/A | AP41: N/A | AQ41: N/A | AR41: deck | AS41: channel wall | AT41: anchored | AU41: design surcharge: 300psf | AV41: N | AW41: N | AX41: N/A | AY41: N | AZ41: N | BA41: N | BB41: N
A42: SE5w | B42: 42 | C42: Superior Entry | D42: Superior | E42: Wall | F42: Harbor Entry | G42: USACOE | H42: N Steel | I42: N Steel | J42: N/A | K42: N/A | L42: N/A | M42: N/A | N42: Y | O42: N/A | P42: N/A | Q42: N/A | T42: N steel | U42: N/A | V42: N/A | W42: N/A | X42: N | Y42: N/A | Z42: N/A | AA42: N/A | AB42: N/A | AC42: N/A | AD42: 46°42'30.72"N | AE42: 92°00'49.89"N | AF42: 46°42'24.37"N | AG42: 92°01'08.46"N | AH42: 1500 | AI42: N SSP | AJ42: N SSP | AK42: High | AL42: N/A | AM42: N/A | AN42: Mod | AO42: N/A | AP42: N/A | AQ42: N/A | AR42: deck | AS42: channel wall | AT42: anchored | AU42: design surcharge: 300psf | AV42: N | AW42: N | AX42: N/A | AY42: N | AZ42: N | BA42: N | BB42: N
A43: SE6w | B43: 43 | C43: Superior Entry | D43: Superior | E43: Wall | F43: Harbor Entry | G43: USACOE | H43: N Steel | I43: N Steel | J43: N/A | K43: N/A | L43: N/A | M43: N/A | N43: Y | O43: N/A | P43: N/A | Q43: N/A | T43: N steel | U43: N/A | V43: N/A | W43: N/A | X43: N | Y43: N/A | Z43: N/A | AA43: N/A | AB43: N/A | AC43: N/A | AD43: 46°42'30.72"N | AE43: 92°00'49.89"N | AF43: 46°42'24.37"N | AG43: 92°01'08.46"N | AH43: 1500 | AI43: N SSP | AJ43: N SSP | AK43: High | AL43: N/A | AM43: N/A | AN43: Mod | AO43: N/A | AP43: N/A | AQ43: N/A | AR43: deck | AS43: channel wall | AT43: anchored | AU43: design surcharge: 300psf | AV43: N | AW43: N | AX43: N/A | AY43: N | AZ43: N | BA43: N | BB43: N
A44: Berth 1 | B44: 44 | C44: DSPA | D44: Duluth | E44: Dock | F44: Misc cargo | G44: DSPA | H44: US Steel | I44: MZ-38 | J44: Late 1950s | K44: 1957 | L44: f-.5, w-.375 | M44: HR | N44: Y | O44: A328 | P44: 0.166 | Q44: 2006-07-18 | T44: 2006-07-18 | U44: 58 | V44: 31 | W44: 28 | X44: N | Y44: N/A | Z44: N/A | AA44: N/A | AB44: N/A | AC44: N/A | AD44: 46°45'28.22"N | AE44: 92°06'13.02"N | AF44: 46°45'35.50"N | AG44: 92°05'52.84"N | AH44: 1600 | AI44: N | AJ44: N | AK44: Low | AL44: Y | AM44: High | AN44: Mod | AO44: pitting -2to-6 | AP44: =(P44/($R$45*7.5*0.001))+2006 -> 2016.392988 | AQ44: =AH44*2500 -> 4000000 | AR44: deck | AS44: dock wall | AT44: anchored | AU44: design surcharge: 800psf | AV44: N | AW44: N | AX44: N | AY44: N | AZ44: N | BA44: N | BB44: N
A45: Berth 4 | B45: 45 | C45: DSPA | D45: Duluth | E45: Dock | F45: Misc cargo | G45: DSPA | H45: US Steel | I45: MZ-38 | J45: Late 1950s | K45: 1957 | L45: f-.5, w-.375 | M45: HR | N45: Y | O45: A328 | P45: 0.121 | Q45: 2006-07-18 | R45: 2.129641 | S45: 2006-11-28 | T45: 2006-07-18 | U45: 58 | V45: 31 | W45: 28 | X45: N | Y45: N/A | Z45: N/A | AA45: N/A | AB45: N/A | AC45: N/A | AD45: 46°45'35.50"N | AE45: 92°05'52.84"N | AF45: 46°45'16.25"N | AG45: 92°05'38.03"N | AH45: 2200 | AI45: N | AJ45: N | AK45: Low | AL45: Y | AM45: High | AN45: High | AO45: pitting -2to-6 | AP45: 2013.575612 | AQ45: 5500000 | AR45: deck | AS45: dock wall | AT45: anchored | AU45: design surcharge: 1000psf | AV45: N | AW45: N | AX45: N | AY45: N | AZ45: N | BA45: N | BB45: N
A46: Berth 6 | B46: 46 | C46: DSPA | D46: Duluth | E46: Dock | F46: Misc cargo | G46: DSPA | H46: US Steel | I46: MZ-38 | J46: Late 1950s | K46: 1957 | L46: f-.5, w-.375 | M46: HR | N46: Y | O46: A328 | P46: 0.208 | Q46: 2006-07-20 | T46: 2006-07-20 | U46: 58 | V46: 31 | W46: 28 | X46: N | Y46: N/A | Z46: N/A | AA46: N/A | AB46: N/A | AC46: N/A | AD46: 46°45'10.89"N | AE46: 92°05'40.89"N | AF46: 46°45'04.50"N | AG46: 92°05'58.18"N | AH46: 1375 | AI46: N | AJ46: N | AK46: Low | AL46: Y | AM46: High | AN46: Mod | AO46: pitting -2to-6 | AP46: 2019.022539 | AQ46: 3437500 | AR46: granular | AS46: dock wall | AT46: anchored | AU46: design surcharge: 1000psf | AV46: N | AW46: N | AX46: N | AY46: N | AZ46: N | BA46: N | BB46: N
A47: MN SLIP | B47: 47 | C47: William A Irvin Slip | D47: Duluth | E47: Wall | F47: Marina | G47: City of Duluth | H47: US Steel | I47: MZ-38 | J47: unkNwn | K47: unkNwn | L47: f-.5, w-.375 | M47: HR | N47: Y | O47: A328 | P47: 0.257 | Q47: 2006-08-02 | T47: 2006-08-02 | U47: unkNwn | V47: 16 | W47: 16 | X47: N | Y47: N/A | Z47: N/A | AA47: N/A | AB47: N/A | AC47: N/A | AD47: 46°47'00.89"N | AE47: 92°05'52.53"N | AF47: 46°47'01.85"N | AG47: 92°05'51.02"N | AH47: 150 | AI47: N | AJ47: Y | AK47: High | AL47: Y | AM47: High | AN47: Mod | AO47: pitting 0to-4 | AP47: 2022.090349 | AQ47: 375000 | AR47: granular | AS47: retaining wall | AT47: anchored | AU47: design surcharge: 300psf | AV47: N | AW47: N | AX47: N | AY47: N | AZ47: N | BA47: N | BB47: N
A48: DECC | B48: 48 | C48: DECC | D48: Duluth | E48: Dock | F48: Sightseeing ship | G48: City of Duluth | H48: US Steel | I48: MZ-38 | J48: Mid-1960s | K48: 1964 | L48: f-.5, w-.375 | M48: HR | N48: Y | O48: A328 | P48: 0.233 | Q48: 2006-08-02 | T48: 2006-08-02 | U48: 28 | V48: 14 | W48: 14 | X48: N | Y48: N/A | Z48: N/A | AA48: N/A | AB48: N/A | AC48: N/A | AD48: 46°46'52.12"N | AE48: 92°05'46.77"N | AF48: 46°46'43.94"N | AG48: 92°05'57.43"N | AH48: 950 | AI48: N | AJ48: N | AK48: High | AL48: Y | AM48: High | AN48: Low | AO48: pitting 0to-4 | AP48: 2020.587748 | AQ48: 2375000 | AR48: deck | AS48: retaining wall | AT48: anchored | AU48: design surcharge: 300psf | AV48: N | AW48: N | AX48: N | AY48: N | AZ48: N | BA48: N | BB48: N
A49: Cargill | B49: 49 | C49: Cargill | D49: Duluth | E49: Dock | F49: Grain loading | G49: Cargill | H49: Bethlehem | I49: PZ-27 | J49: unkNwn | K49: unkNwn | L49: .375 | M49: HR | N49: Y | O49: A328 | P49: 0.182 | Q49: 2006-08-02 | T49: 2006-08-02 | U49: unkNwn | V49: 28 | W49: 28 | X49: N | Y49: N/A | Z49: N/A | AA49: N/A | AB49: N/A | AC49: N/A | AD49: 46°46'02.50"N | AE49: 92°06'40.15"N | AF49: 46°46'10.30"N | AG49: 92°06'18.60"N | AH49: 1700 | AI49: N | AJ49: N | AK49: Low | AL49: Y | AM49: High | AN49: Mod | AO49: pitting 0to-4 | AP49: 2017.394722 | AQ49: 4250000 | AR49: deck | AS49: dock wall | AT49: anchored | AU49: design surcharge: 300psf | AV49: N | AW49: Y | AX49: .25-.5"Æ | AY49: N | AZ49: N | BA49: N | BB49: Y
A50: Hallett Dock 5 | B50: 50 | C50: Hallett Dock 5 | D50: Duluth | E50: Dock | F50: Misc cargo | G50: Hallett | H50: US Steel | I50: MZ-38 | J50: Late 1980s | K50: 1988 | L50: f-.5, w-.375 | M50: HR | N50: Y | O50: A328 | P50: 0.357 | Q50: 2006-08-03 | R50: 2.532819 | S50: 2006-11-28 | T50: 2006-08-03 | U50: 50 | V50: 25 | W50: 26 | X50: N | Y50: N/A | Z50: N/A | AA50: N/A | AB50: N/A | AC50: N/A | AD50: 46°45'00.34"N | AE50: 92°08'20.29"N | AF50: 46°44'43.44"N | AG50: 92°07'156.80"N | AH50: 2400 | AI50: N | AJ50: N | AK50: Low | AL50: Y | AM50: High | AN50: Mod | AO50: pitting 0to-6 | AP50: =(P50/($R$50*7.5*0.001))+2006 -> 2024.793289 | AQ50: 6000000 | AR50: deck | AS50: dock wall | AT50: anchored | AU50: design surcharge: 200psf | AV50: N | AW50: N | AX50: N | AY50: N | AZ50: N | BA50: N | BB50: N
A51: Bong Bridge Cell | B51: 51 | C51: Bong Bridge Cell | D51: in harbor | E51: Cell | F51: protection cell | G51: MN/Dot | H51: US Steel | I51: PSA-28 | J51: Early 1980s | K51: 1983 | L51: .500 | M51: HR | N51: Y | O51: A328 | P51: 0.431 | Q51: 2006-08-01 | T51: 2006-08-01 | U51: unkNwn | V51: 27 | W51: 28 | X51: Y | Y51: 1983 | Z51: Sher-Tar | AA51: Sherwin Williams | AB51: CT epoxy | AC51: 14 to -8 lwd | AD51: 46°43'52.89"N | AE51: 92°08'40.40"N | AF51: = center of | AG51: dolphin | AH51: 30'Æ | AI51: N | AJ51: N | AK51: High | AL51: Y | AM51: High | AN51: Low | AO51: pitting 0to-2 | AP51: =(P51/($R$50*7.5*0.001))+2006 -> 2028.688817 | AQ51: 300000 | AR51: deck | AS51: cell wall | AT51: cellular | AU51: N/A | AV51: N | AW51: N | AX51: N | AY51: N | AZ51: N | BA51: N | BB51: N
A52: Hallett Dock 7 | B52: 52 | C52: Hallett Dock 7 | D52: Duluth | E52: Dock | F52: Misc cargo | G52: Hallett | H52: N SSP | I52: N/A | J52: N/A | K52: N/A | L52: N/A | M52: N/A | N52: N/A | O52: N/A | P52: N/A | Q52: N/A | R52: 1.200803 | S52: 2006-11-28 | T52: N/A | U52: N/A | V52: 20 | W52: 20 | X52: N | Y52: N/A | Z52: N/A | AA52: N/A | AB52: N/A | AC52: N/A | AD52: 46°43'29.77"N | AE52: 92°09'43.10"N | AF52: 46°43'10.01"N | AG52: 92°09'43.15"N | AH52: 2000 | AI52: N | AJ52: N SSP | AK52: High | AL52: N/A | AM52: High | AN52: Low | AO52: N/A | AP52: N/A | AQ52: N/A | AR52: granular | AS52: dock wall | AT52: wood pile | AU52: design surcharge: 300psf | AV52: Y | AW52: Y | AX52: N/A | AY52: N | AZ52: N | BA52: N | BB52: Y
A53: Spirit Lake Marina | B53: 53 | C53: Spirit Lake Marina | D53: Duluth | E53: Dock | F53: Marina | G53: Jim King | H53: unkNwn | I53: sch 40 pipe | J53: Late 1980's | K53: unkNwn | L53: .375 | M53: HR | N53: Y | O53: unkNwn | P53: 0.22 | Q53: 2006-07-31 | T53: 2006-07-31 | U53: unkNwn | V53: 8 | W53: 8 | X53: N | Y53: N/A | Z53: N/A | AA53: N/A | AB53: N/A | AC53: N/A | AD53: 46°42'25.41"N | AE53: 92°12'11.37"N | AF53: 46°42'26.43"N | AG53: 92°12'10.44"N | AH53: 125 | AI53: N | AJ53: N | AK53: High | AL53: Y | AM53: Low | AN53: Low | AO53: pitting -2to-3 | AP53: =(P53/($R$52*7.5*0.001))+2006 -> 2030.428098 | AQ53: =AH53*2500 -> 312500 | AR53: wood dock | AS53: wood dock | AT53: wood pile | AU53: N/A | AV53: N | AW53: N | AX53: N | AY53: N | AZ53: N | BA53: N | BB53: N
A54: Oliver Bridge | B54: 54 | C54: Oliver Bridge | D54: Oliver | E54: Wall | F54: Bridge pier | G54: CN Railway | H54: Bethlehem | I54: unkNwn | J54: 1900s | K54: unkNwn | L54: .625 | M54: HR | N54: N | O54: unkNwn | P54: 0.237 | Q54: 2006-07-31 | R54: 0.645279 | S54: 2006-11-28 | T54: 2006-07-31 | U54: 40 | V54: 26 | W54: 20 | X54: N | Y54: N/A | Z54: N/A | AA54: N/A | AB54: N/A | AC54: N/A | AD54: 46°39'23.64"N | AE54: 92°12'08.49"N | AF54: 46°39'24.02"N | AG54: 92°12'08.56"N | AH54: 140 | AI54: N | AJ54: N | AK54: High | AL54: N | AM54: 0 | AN54: Low | AO54: pitting 0 to -15 | AP54: =(P54/($R$54*7.5*0.001))+2006 -> 2054.971065 | AQ54: 350000 | AR54: water | AS54: retaining wall | AT54: cantilever | AU54: N/A | AV54: N | AW54: N | AX54: .25-1"Æ | AY54: N | AZ54: N | BA54: N | BB54: N
A55: Midwest Energy | B55: 55 | C55: Midwest Energy | D55: Superior | E55: Dock | F55: Coal loading | G55: Midwest | H55: UnkNwn | I55: HP 12X74 | J55: Mid-1970s | K55: 1974 | L55: .610 | M55: HR | N55: Y | O55: A36 | P55: 0.291 | Q55: 2006-08-03 | R55: 2.342333 | S55: 2006-11-28 | T55: 2006-08-03 | U55: 85 | V55: 27 | W55: 28 | X55: N | Y55: N/A | Z55: N/A | AA55: N/A | AB55: N/A | AC55: N/A | AD55: 46°44'32.88"N | AE55: 92°06'56.79"N | AF55: 46°44'37.50"N | AG55: 92°06'41.22"N | AH55: 1215 | AI55: N | AJ55: N | AK55: Low | AL55: Y | AM55: High | AN55: High | AO55: pitting 0 to-15 | AP55: =(P55/($R$55*7.5*0.001))+2006 -> 2022.564681 | AQ55: 3500000 | AR55: water | AS55: wharf | AT55: h-pile wharf | AU55: N/A | AV55: N | AW55: N | AX55: N | AY55: twisted 0to-10' | AZ55: N | BA55: N | BB55: N
A56: CHS1 | B56: 56 | C56: Cenex Harvest States | D56: Superior | E56: Dock | F56: Grain loading | G56: CHS | H56: US Steel | I56: MP-115 | J56: Early 1960s | K56: 1963 | L56: .375 | M56: HR | N56: Y | O56: A328 | P56: 0.262 | Q56: 2006-08-08 | T56: 2006-08-08 | U56: 50 | V56: 27 | W56: 28 | X56: N | Y56: N/A | Z56: N/A | AA56: N/A | AB56: N/A | AC56: N/A | AD56: 46°44'19.92"N | AE56: 92°05'58.59"N | AF56: 46°44'31.86"N | AG56: 92°05'59.04"N | AH56: 1175 | AI56: N | AJ56: N | AK56: Low | AL56: Y | AM56: High | AN56: Low | AO56: pitting 0to-6 | AP56: =(P56/($R$55*7.5*0.001))+2006 -> 2020.913906 | AQ56: =AH56*2500 -> 2937500 | AR56: deck | AS56: dock wall | AT56: anchored | AU56: design surcharge: 300psf | AV56: N | AW56: Y | AX56: N | AY56: N | AZ56: N | BA56: N | BB56: Y
A57: CHS2 | B57: 57 | C57: Cenex Harvest States | D57: Superior | E57: Dock | F57: Grain loading | G57: CHS | H57: US Steel | I57: MZ-27 | J57: Early 1960s | K57: 1963 | L57: .375 | M57: HR | N57: Y | O57: A328 | P57: 0.167 | Q57: 2006-08-08 | T57: 2006-08-08 | U57: unkNwn | V57: 24 | W57: 24 | X57: N | Y57: N/A | Z57: N/A | AA57: N/A | AB57: N/A | AC57: N/A | AD57: 46°44'17.47"N | AE57: 92°06'11.53"N | AF57: 46°44'21.95"N | AG57: 92°06'08.83"N | AH57: 1165 | AI57: N | AJ57: N | AK57: Low | AL57: Y | AM57: High | AN57: Low | AO57: pitting 0to-6 | AP57: =(P57/($R$55*7.5*0.001))+2006 -> 2015.506192 | AQ57: 2912500 | AR57: deck | AS57: dock wall | AT57: anchored | AU57: design surcharge: 300psf | AV57: N | AW57: N | AX57: N | AY57: N | AZ57: N | BA57: N | BB57: N
A58: CHS3 | B58: 58 | C58: Cenex Harvest States | D58: Superior | E58: Dock | F58: Grain loading | G58: CHS | H58: Hoesch | I58: 2500 | J58: Early 2000s | K58: 2003 | L58: f-.492,w-.375 | M58: HR | N58: Y | O58: A328 | P58: 0.458 | Q58: 2006-08-08 | T58: 2006-08-08 | U58: 50 | V58: 24 | W58: 24 | X58: N | Y58: N/A | Z58: N/A | AA58: N/A | AB58: N/A | AC58: N/A | AD58: 46°44'21.95"N | AE58: 92°06'08.83"N | AF58: 46°44'28.20"N | AG58: 92°06'05.81"N | AH58: 1165 | AI58: N | AJ58: N | AK58: Low | AL58: Y | AM58: High | AN58: Low | AO58: pitting -2to-8 | AP58: =(P58/($R$55*7.5*0.001))+2006 -> 2032.070873 | AQ58: 2912500 | AR58: deck | AS58: dock wall | AT58: anchored | AU58: design surcharge: 300psf | AV58: N | AW58: N | AX58: N | AY58: N | AZ58: N | BA58: N | BB58: N
A59: Cutler Magner | B59: 59 | C59: Cutler Magner | D59: Superior | E59: Dock | F59: Dolomite unload | G59: Cutler Magner | H59: US Steel | I59: MZ-32 | J59: 1960s | K59: unkNwn | L59: f-.5, w-.375 | M59: HR | N59: Y | O59: A328 | P59: 0.445 | Q59: 2006-08-09 | R59: 1.743392 | S59: 2006-11-28 | T59: 2006-08-09 | U59: 55 | V59: 24 | W59: 28 | X59: N | Y59: N/A | Z59: N/A | AA59: N/A | AB59: N/A | AC59: N/A | AD59: 46°43'51.11"N | AE59: 92°04'42.33"N | AF59: 46°43'59.89"N | AG59: 92°04'29.14"N | AH59: 570 | AI59: N | AJ59: N | AK59: Low | AL59: Y | AM59: High | AN59: Mod | AO59: pitting -2to-8 | AP59: =(P59/($R$59*7.5*0.001))+2006 -> 2040.033272 | AQ59: 1425000 | AR59: deck | AS59: dock wall | AT59: anchored | AU59: design surcharge: 300psf | AV59: N | AW59: N | AX59: N | AY59: N | AZ59: N | BA59: N | BB59: N
A60: LBB1 | B60: 60 | C60: Lakehead Boat Basin | D60: Duluth | E60: Dock | F60: Marina | G60: J. Johnson | H60: US Steel | I60: PZ-27 | J60: Early 2000s | K60: 2002 | L60: .375 | M60: HR | N60: Y | O60: A328 | P60: 0.319 | Q60: 2006-08-09 | T60: 2006-08-09 | U60: 20 | V60: 8 | W60: 8 | X60: Y | Y60: 2002 | Z60: Galvanize | AA60: unkNwn | AB60: hot dipped | AC60: entire face | AD60: 46°46'29.80"N | AE60: 92°05'31.83"N | AF60: 46°46'28.77"N | AG60: 92°05'34.74"N | AH60: 250 | AI60: N | AJ60: Y | AK60: Low | AL60: Y | AM60: High | AN60: Low | AO60: very miNr pits | AP60: =(P60/($R$45*7.5*0.001))+2006 -> 2025.972067 | AQ60: 625000 | AR60: deck | AS60: dock wall | AT60: anchored | AU60: design surcharge: 300psf | AV60: N | AW60: N | AX60: N | AY60: N | AZ60: N | BA60: N | BB60: N
A61: LBB2 | B61: 61 | C61: Lakehead Boat Basin | D61: Duluth | E61: Dock | F61: Marina | G61: J. Johnson | H61: US Steel | I61: PSA-23 | J61: Mid 1960s | K61: 1965 | L61: .375 | M61: HR | N61: Y | O61: A328 | P61: 0.151 | Q61: 2006-08-09 | T61: 2006-08-09 | U61: 12 | V61: 5 | W61: 6 | X61: N | Y61: N/A | Z61: N/A | AA61: N/A | AB61: N/A | AC61: N/A | AD61: 46°46'26.63"N | AE61: 92°05'32.14"N | AF61: 46°46'27.59"N | AG61: 92°05'29.04"N | AH61: 175 | AI61: N | AJ61: Y | AK61: Low | AL61: Y | AM61: High | AN61: Low | AO61: pitting 0 to -6 | AP61: =(P61/($R$45*7.5*0.001))+2006 -> 2015.453863 | AQ61: 437500 | AR61: deck | AS61: dock wall | AT61: anchored | AU61: design surcharge: 300psf | AV61: N | AW61: Y | AX61: .25" or less | AY61: N | AZ61: N | BA61: N | BB61: Y
A62: Community Sailing Dock | B62: 62 | C62: Community Sailing Dock | D62: Duluth | E62: Dock | F62: Sailing Dock | G62: City of Duluth | H62: US Steel | I62: PMA-22 | J62: unkNwn | K62: unkNwn | L62: .375 | M62: HR | N62: Y | O62: A328 | P62: 0.232 | Q62: 2006-08-02 | T62: 2006-08-02 | U62: unkNwn | V62: 5 | W62: 6 | X62: N | Y62: N/A | Z62: N/A | AA62: N/A | AB62: N/A | AC62: N/A | AD62: 46°43'55.61"N | AE62: 92°03'24.18"N | AF62: 46°43'55.99"N | AG62: 92°03'24.62"N | AH62: 50 | AI62: N | AJ62: N | AK62: High | AL62: Y | AM62: High | AN62: Low | AO62: pitting 0 to -6 | AP62: =(P62/($R$59*7.5*0.001))+2006 -> 2023.743189 | AQ62: 125000 | AR62: deck | AS62: dock wall | AT62: anchored | AU62: unkNwn | AV62: N | AW62: N | AX62: N | AY62: N | AZ62: N | BA62: N | BB62: N
A63: Two Harbors | B63: 63 | C63: CN Railway-Two Harbors | D63: Two Harbors | E63: Dock | F63: Taconite load, limestone unload | G63: CN Railway | H63: US Steel | I63: MP-115 | J63: Early 1910's | K63: 1912 | L63: .375 | M63: HR | N63: Y | O63: A328 | P63: 0.217 | Q63: 2006-07-19 | T63: 2006-07-19 | U63: unkNwn | V63: 30 | W63: 30 | X63: N | Y63: N/A | Z63: N/A | AA63: N/A | AB63: N/A | AC63: N/A | AD63: 47°01'02.04"N | AE63: 91°40'33.43"N | AF63: 47°00'55.72"N | AG63: 91°40'15.43"N | AH63: 1406 | AI63: N | AJ63: N | AK63: Low | AL63: N | AM63: 0 | AN63: Low | AO63: pitting @-2to-6 | AP63: =(P63/($R$18*7.5*0.001))+2006 -> 2038.910726 | AQ63: 3515000 | AR63: deck | AS63: dock wall | AT63: anchored | AU63: design surcharge: 300psf | AV63: N | AW63: N | AX63: N | AY63: N | AZ63: N | BA63: N | BB63: N

Sheet Duluth Structural Data 2006
A1: Station ID | B1: Item No. | C1: Record_No | D1: Corrosion Measurement Date | E1: Latitude | F1: Longitude | G1: Depth (ft) | H1: Elevation (ft) | I1: Surface Type | J1: Overall Plate Thickness (T) (in) | K1: Thickness of steel at pit 1 (P1r) (in) | L1: Pit 1 diameter (P1dia) (in) | M1: Thickness of steel at pit 2 (P2r) (in) | N1: Pit 2 diameter (P2dia) (in) | O1: Thickness of steel at pit 3 (P3r) (in) | P1: Pit 3 diameter (P3dia) (in) | Q1: Thickness of steel at pit 4 (P4r) (in) | R1: Pit 4 diameter (P4dia) (in) | S1: Corrosion Rating (CR) ( High, Moderate, Low) | T1: % Pitting
A2: CGA1o | B2: 1 | C2: 27 | D2: 2006-08-18 | E2: 46.73503 | F2: 92.14468 | G2: +2.0 | H2: =SUM(H3+2) -> 603 | I2: Flat SSP | J2: 0.375
A3: CGA1o | B3: 2 | C3: 27 | D3: 2006-08-18 | E3: 46.73503 | F3: 92.14468 | G3: 0.0 | H3: 601 | I3: Flat SSP | J3: 0.344 | K3: 0.156 | L3: 0.625 | M3: 0.094 | N3: 0.625 | O3: 0.094 | P3: 0.75 | Q3: 0.219 | R3: 0.5 | S3: HIGH | T3: =IF(S3="high","75-100",IF(S3="mod","50-75",IF(S3="low","0-50"," "))) -> 75-100
A4: CGA1o | B4: 3 | C4: 27 | D4: 2006-08-18 | E4: 46.73503 | F4: 92.14468 | G4: -2.0 | H4: =SUM(H3-2) -> 599 | I4: Flat SSP | J4: 0.304 | K4: 0.179 | L4: 0.375 | M4: 0.116 | N4: 0.25 | O4: 0.116 | P4: 0.5 | Q4: 0.179 | R4: 0.25 | S4: HIGH | T4: 75-100
A5: CGA1o | B5: 4 | C5: 27 | D5: 2006-08-18 | E5: 46.73503 | F5: 92.14468 | G5: -4.0 | H5: =SUM(H3-4) -> 597 | I5: Flat SSP | J5: 0.3 | K5: 0.112 | L5: 0.375 | M5: 0.237 | N5: 0.25 | O5: 0.237 | P5: 0.25 | Q5: 0.237 | R5: 0.25 | S5: HIGH | T5: 75-100
A6: CGA1o | B6: 5 | C6: 27 | D6: 2006-08-18 | E6: 46.73503 | F6: 92.14468 | G6: -6.0 | H6: =SUM(H3-6) -> 595 | I6: Flat SSP | J6: 0.32 | K6: 0.257 | L6: 0.25 | M6: 0.257 | N6: 0.188 | O6: 0.257 | P6: 0.188 | Q6: 0.257 | R6: 0.125 | S6: HIGH | T6: 75-100
A7: CGA1o | B7: 6 | C7: 27 | D7: 2006-08-18 | E7: 46.73503 | F7: 92.14468 | G7: -8.0 | H7: =SUM(H3-8) -> 593 | I7: Flat SSP | J7: 0.378 | K7: 0.315 | L7: 0.25 | M7: 0.338 | N7: 0.188 | O7: 0.315 | P7: 0.25 | Q7: 0.315 | R7: 0.188 | S7: HIGH | T7: 75-100
A8: CGA1o | B8: 7 | C8: 27 | D8: 2006-08-18 | E8: 46.73503 | F8: 92.14468 | G8: -10.0 | H8: =SUM(H3-10) -> 591 | I8: Flat SSP | J8: 0.32 | K8: 0.29 | L8: 0.125 | M8: 0.29 | N8: 0.188 | O8: 0.257 | P8: 0.25 | Q8: 0.28 | R8: 0.125 | S8: HIGH | T8: 75-100
A9: CGA1o | B9: 8 | C9: 27 | D9: 2006-08-18 | E9: 46.73503 | F9: 92.14468 | G9: -15.0 | H9: =SUM(H3-15) -> 586 | I9: Flat SSP
A10: CGA1o | B10: 9 | C10: 27 | D10: 2006-08-18 | E10: 46.73503 | F10: 92.14468 | G10: -20.0 | H10: =SUM(H3-20) -> 581 | I10: Flat SSP
A11: CGB1o | B11: 1 | C11: 28 | D11: 2006-08-31 | E11: 46.70118657 | F11: 92.03368148 | G11: +2.0 | H11: =SUM(H12+2) -> 603 | I11: Flat SSP | J11: 0.375
A12: CGB1o | B12: 2 | C12: 28 | D12: 2006-08-31 | E12: 46.70118657 | F12: 92.03368148 | G12: 0.0 | H12: 601 | I12: Flat SSP | J12: 0.307 | K12: 0.182 | L12: 0.5 | M12: 0.057 | N12: 0.5 | O12: hole | P12: 0.625 | Q12: hole | R12: 0.625 | S12: HIGH | T12: 75-100
A13: CGB1o | B13: 3 | C13: 28 | D13: 2006-08-31 | E13: 46.70118657 | F13: 92.03368148 | G13: -2.0 | H13: =SUM(H12-2) -> 599 | I13: Flat SSP | J13: 0.379 | K13: 0.191 | L13: 0.5 | M13: 0.254 | N13: 0.5 | O13: hole | P13: 0.375 | Q13: hole | R13: 0.5 | S13: HIGH | T13: 75-100
A14: CGB1o | B14: 4 | C14: 28 | D14: 2006-08-31 | E14: 46.70118657 | F14: 92.03368148 | G14: -4.0 | H14: =SUM(H12-4) -> 597 | I14: Flat SSP | J14: 0.363 | K14: 0.303 | L14: 0.25 | M14: 0.3 | N14: 0.375 | O14: 0.313 | P14: 0.5 | Q14: 0.293 | R14: 0.375 | S14: HIGH | T14: 75-100
A15: CGB1o | B15: 5 | C15: 28 | D15: 2006-08-31 | E15: 46.70118657 | F15: 92.03368148 | G15: -6.0 | H15: =SUM(H12-6) -> 595 | I15: Flat SSP | J15: 0.35 | K15: 0.31 | L15: 0.25 | M15: 0.287 | N15: 0.25 | O15: 0.3 | P15: 0.5 | Q15: 0.287 | R15: 0.375 | S15: HIGH | T15: 75-100
A16: CGB1o | B16: 6 | C16: 28 | D16: 2006-08-31 | E16: 46.70118657 | F16: 92.03368148 | G16: -8.0 | H16: =SUM(H12-8) -> 593 | I16: Flat SSP
A17: CGB1o | B17: 7 | C17: 28 | D17: 2006-08-31 | E17: 46.70118657 | F17: 92.03368148 | G17: -10.0 | H17: =SUM(H12-10) -> 591 | I17: Flat SSP
A18: CGB1o | B18: 8 | C18: 28 | D18: 2006-08-31 | E18: 46.70118657 | F18: 92.03368148 | G18: -15.0 | H18: =SUM(H12-15) -> 586 | I18: Flat SSP
A19: CGB1o | B19: 9 | C19: 28 | D19: 2006-08-31 | E19: 46.70118657 | F19: 92.03368148 | G19: -20.0 | H19: =SUM(H12-20) -> 581 | I19: Flat SSP
A20: CGC1o | B20: 1 | C20: 29 | D20: 2006-08-18 | E20: 46.72 | F20: 92.14361667 | G20: +2.0 | H20: =SUM(H21+2) -> 603 | I20: Flat SSP | J20: 0.375
A21: CGC1o | B21: 2 | C21: 29 | D21: 2006-08-18 | E21: 46.72 | F21: 92.14361667 | G21: 0.0 | H21: 601 | I21: Flat SSP | J21: 0.346 | K21: 0.158 | L21: 0.5 | M21: 0.089 | N21: 0.5 | O21: 0.208 | P21: 0.5 | Q21: 0.096 | R21: 0.5 | S21: HIGH | T21: 75-100
A22: CGC1o | B22: 3 | C22: 29 | D22: 2006-08-18 | E22: 46.72 | F22: 92.14361667 | G22: -2.0 | H22: =SUM(H21-2) -> 599 | I22: Flat SSP | J22: 0.278 | K22: 0.122 | L22: 0.375 | M22: 0.153 | N22: 0.75 | O22: 0.153 | P22: 0.5 | Q22: 0.065 | R22: 0.625 | S22: HIGH | T22: 75-100
A23: CGC1o | B23: 4 | C23: 29 | D23: 2006-08-18 | E23: 46.72 | F23: 92.14361667 | G23: -4.0 | H23: =SUM(H21-4) -> 597 | I23: Flat SSP | J23: 0.337 | K23: 0.274 | L23: 0.25 | M23: 0.297 | N23: 0.25 | O23: 0.274 | P23: 0.375 | Q23: 0.287 | R23: 0.125 | S23: HIGH | T23: 75-100
A24: CGC1o | B24: 5 | C24: 29 | D24: 2006-08-18 | E24: 46.72 | F24: 92.14361667 | G24: -6.0 | H24: =SUM(H21-6) -> 595 | I24: Flat SSP
A25: CGC1o | B25: 6 | C25: 29 | D25: 2006-08-18 | E25: 46.72 | F25: 92.14361667 | G25: -8.0 | H25: =SUM(H21-8) -> 593 | I25: Flat SSP
A26: CGC1o | B26: 7 | C26: 29 | D26: 2006-08-18 | E26: 46.72 | F26: 92.14361667 | G26: -10.0 | H26: =SUM(H21-10) -> 591 | I26: Flat SSP
A27: CGC1o | B27: 8 | C27: 29 | D27: 2006-08-18 | E27: 46.72 | F27: 92.14361667 | G27: -15.0 | H27: =SUM(H21-15) -> 586 | I27: Flat SSP
A28: CGC1o | B28: 9 | C28: 29 | D28: 2006-08-18 | E28: 46.72 | F28: 92.14361667 | G28: -20.0 | H28: =SUM(H21-20) -> 581 | I28: Flat SSP
A29: DE1i | B29: 1 | C29: 1 | D29: 2006-08-21 | E29: 46.7809 | F29: 92.08855 | G29: +2.0 | H29: =SUM(H30+2) -> 603 | I29: Inner Flange | J29: 0.608
A30: DE1i | B30: 2 | C30: 1 | D30: 2006-08-21 | E30: 46.7809 | F30: 92.08855 | G30: 0.0 | H30: 601 | I30: Inner Flange | J30: 0.593 | K30: 0.588 | L30: 0.063 | M30: 0.583 | N30: 0.063 | O30: 0.588 | P30: 0.063 | Q30: 0.588 | R30: 0.063 | S30: LOW | T30: 0-50
A31: DE1i | B31: 3 | C31: 1 | D31: 2006-08-21 | E31: 46.7809 | F31: 92.08855 | G31: -2.0 | H31: =SUM(H30-2) -> 599 | I31: Inner Flange | J31: 0.578 | K31: 0.453 | L31: 0.375 | M31: 0.515 | N31: 0.375 | O31: 0.538 | P31: 0.375 | Q31: 0.538 | R31: 0.188 | S31: MOD | T31: 50-75
A32: DE1i | B32: 4 | C32: 1 | D32: 2006-08-21 | E32: 46.7809 | F32: 92.08855 | G32: -4.0 | H32: =SUM(H30-4) -> 597 | I32: Inner Flange | J32: 0.608 | K32: 0.545 | L32: 0.5 | M32: 0.518 | N32: 0.5 | O32: 0.518 | P32: 0.375 | Q32: 0.558 | R32: 0.25 | S32: MOD | T32: 50-75
A33: DE1i | B33: 5 | C33: 1 | D33: 2006-08-21 | E33: 46.7809 | F33: 92.08855 | G33: -6.0 | H33: =SUM(H30-6) -> 595 | I33: Inner Flange | J33: 0.613 | K33: 0.513 | L33: 0.75 | M33: 0.55 | N33: 0.375 | O33: 0.55 | P33: 0.5 | Q33: 0.563 | R33: 0.375 | S33: MOD | T33: 50-75
A34: DE1i | B34: 6 | C34: 1 | D34: 2006-08-21 | E34: 46.7809 | F34: 92.08855 | G34: -8.0 | H34: =SUM(H30-8) -> 593 | I34: Inner Flange | J34: 0.628 | K34: 0.588 | L34: 0.375 | M34: 0.608 | N34: 0.188 | O34: 0.608 | P34: 0.25 | Q34: 0.588 | R34: 0.188 | S34: MOD | T34: 50-75
A35: DE1i | B35: 7 | C35: 1 | D35: 2006-08-21 | E35: 46.7809 | F35: 92.08855 | G35: -10.0 | H35: =SUM(H30-10) -> 591 | I35: Inner Flange | T35: =IF(S35="high","75-100",IF(S35="mod","50-75",IF(S35="low","0-50"," "))) -> 
A36: DE1i | B36: 8 | C36: 1 | D36: 2006-08-21 | E36: 46.7809 | F36: 92.08855 | G36: -15.0 | H36: =SUM(H30-15) -> 586 | I36: Inner Flange
A37: DE1i | B37: 9 | C37: 1 | D37: 2006-08-21 | E37: 46.7809 | F37: 92.08855 | G37: -20.0 | H37: =SUM(H30-20) -> 581 | I37: Inner Flange
A38: DE1o | B38: 1 | C38: 2 | D38: 2006-08-21 | E38: 46.7809 | F38: 92.08855 | G38: +2.0 | H38: =SUM(H39+2) -> 603 | I38: Outer Flange | J38: 0.611
A39: DE1o | B39: 2 | C39: 2 | D39: 2006-08-21 | E39: 46.7809 | F39: 92.08855 | G39: 0.0 | H39: 601 | I39: Outer Flange | J39: 0.596 | K39: 0.591 | L39: 0.063 | M39: 0.591 | N39: 0.063 | O39: 0.556 | P39: 0.125 | Q39: 0.591 | R39: 0.063 | S39: LOW | T39: 0-50
A40: DE1o | B40: 3 | C40: 2 | D40: 2006-08-21 | E40: 46.7809 | F40: 92.08855 | G40: -2.0 | H40: =SUM(H39-2) -> 599 | I40: Outer Flange | J40: 0.569 | K40: 0.506 | L40: 0.125 | M40: 0.506 | N40: 0.125 | O40: 0.519 | P40: 0.125 | Q40: 0.529 | R40: 0.188 | S40: MOD | T40: 50-75
A41: DE1o | B41: 4 | C41: 2 | D41: 2006-08-21 | E41: 46.7809 | F41: 92.08855 | G41: -4.0 | H41: =SUM(H39-4) -> 597 | I41: Outer Flange | J41: 0.593 | K41: 0.53 | L41: 0.188 | M41: 0.53 | N41: 0.375 | O41: 0.543 | P41: 0.188 | Q41: 0.543 | R41: 0.188 | S41: MOD | T41: 50-75
A42: DE1o | B42: 5 | C42: 2 | D42: 2006-08-21 | E42: 46.7809 | F42: 92.08855 | G42: -6.0 | H42: =SUM(H39-6) -> 595 | I42: Outer Flange | J42: 0.609 | K42: 0.519 | L42: 0.25 | M42: 0.519 | N42: 0.063 | O42: 0.546 | P42: 0.25 | Q42: 0.546 | R42: 0.188 | S42: HIGH | T42: 75-100
A43: DE1o | B43: 6 | C43: 2 | D43: 2006-08-21 | E43: 46.7809 | F43: 92.08855 | G43: -8.0 | H43: =SUM(H39-8) -> 593 | I43: Outer Flange | J43: 0.608 | K43: 0.545 | L43: 0.188 | M43: 0.545 | N43: 0.125 | O43: 0.558 | P43: 0.188 | Q43: 0.568 | R43: 0.188 | S43: HIGH | T43: 75-100
A44: DE1o | B44: 7 | C44: 2 | D44: 2006-08-21 | E44: 46.7809 | F44: 92.08855 | G44: -10.0 | H44: =SUM(H39-10) -> 591 | I44: Outer Flange | J44: 0.618 | K44: 0.588 | L44: 0.125 | M44: 0.555 | N44: 0.25 | O44: 0.578 | P44: 0.125 | Q44: 0.578 | R44: 0.25 | S44: HIGH | T44: 75-100
A45: DE1o | B45: 8 | C45: 2 | D45: 2006-08-21 | E45: 46.7809 | F45: 92.08855 | G45: -15.0 | H45: =SUM(H39-15) -> 586 | I45: Outer Flange | J45: 0.613 | K45: 0.55 | L45: 0.25 | M45: 0.55 | N45: 0.25 | O45: 0.543 | P45: 0.25 | Q45: 0.563 | R45: 0.188 | S45: HIGH | T45: 75-100
A46: DE1o | B46: 9 | C46: 2 | D46: 2006-08-21 | E46: 46.7809 | F46: 92.08855 | G46: -20.0 | H46: =SUM(H39-20) -> 581 | I46: Outer Flange | J46: 0.616 | K46: 0.553 | L46: 0.188 | M46: 0.576 | N46: 0.125 | O46: 0.586 | P46: 0.125 | Q46: 0.566 | R46: 0.188 | S46: HIGH | T46: 75-100
A47: DE2i | B47: 1 | C47: 3 | D47: 2006-08-21 | E47: 46.78086667 | F47: 92.08843333 | G47: +2.0 | H47: =SUM(H48+2) -> 603 | I47: Inner Flange | J47: 0.602
A48: DE2i | B48: 2 | C48: 3 | D48: 2006-08-21 | E48: 46.78086667 | F48: 92.08843333 | G48: 0.0 | H48: 601 | I48: Inner Flange | J48: 0.604 | K48: 0.564 | L48: 0.188 | M48: 0.541 | N48: 0.25 | O48: 0.541 | P48: 0.188 | Q48: 0.541 | R48: 0.188 | S48: MOD | T48: 50-75
A49: DE2i | B49: 3 | C49: 3 | D49: 2006-08-21 | E49: 46.78086667 | F49: 92.08843333 | G49: -2.0 | H49: =SUM(H48-2) -> 599 | I49: Inner Flange | J49: 0.618 | K49: 0.508 | L49: 0.5 | M49: 0.518 | N49: 0.375 | O49: 0.528 | P49: 0.375 | Q49: 0.548 | R49: 0.25 | S49: HIGH | T49: 75-100
A50: DE2i | B50: 4 | C50: 3 | D50: 2006-08-21 | E50: 46.78086667 | F50: 92.08843333 | G50: -4.0 | H50: =SUM(H48-4) -> 597 | I50: Inner Flange | J50: 0.606 | K50: 0.506 | L50: 0.5 | M50: 0.496 | N50: 0.5 | O50: 0.543 | P50: 0.25 | Q50: 0.506 | R50: 0.5 | S50: HIGH | T50: 75-100
A51: DE2i | B51: 5 | C51: 3 | D51: 2006-08-21 | E51: 46.78086667 | F51: 92.08843333 | G51: -6.0 | H51: =SUM(H48-6) -> 595 | I51: Inner Flange | J51: 0.604 | K51: 0.504 | L51: 0.25 | M51: 0.541 | N51: 0.188 | O51: 0.564 | P51: 0.25 | Q51: 0.554 | R51: 0.188 | S51: HIGH | T51: 75-100
A52: DE2i | B52: 6 | C52: 3 | D52: 2006-08-21 | E52: 46.78086667 | F52: 92.08843333 | G52: -8.0 | H52: =SUM(H48-8) -> 593 | I52: Inner Flange | J52: 0.612 | K52: 0.562 | L52: 0.188 | M52: 0.572 | N52: 0.188 | O52: 0.562 | P52: 0.188 | Q52: 0.572 | R52: 0.25 | S52: HIGH | T52: 75-100
A53: DE2i | B53: 7 | C53: 3 | D53: 2006-08-21 | E53: 46.78086667 | F53: 92.08843333 | G53: -10.0 | H53: =SUM(H48-10) -> 591 | I53: Inner Flange
A54: DE2i | B54: 8 | C54: 3 | D54: 2006-08-21 | E54: 46.78086667 | F54: 92.08843333 | G54: -15.0 | H54: =SUM(H48-15) -> 586 | I54: Inner Flange
A55: DE2i | B55: 9 | C55: 3 | D55: 2006-08-21 | E55: 46.78086667 | F55: 92.08843333 | G55: -20.0 | H55: =SUM(H48-20) -> 581 | I55: Inner Flange
A56: DE2o | B56: 1 | C56: 4 | D56: 2006-08-21 | E56: 46.78086667 | F56: 92.08843333 | G56: +2.0 | H56: =SUM(H57+2) -> 603 | I56: Outer Flange | J56: 0.613
A57: DE2o | B57: 2 | C57: 4 | D57: 2006-08-21 | E57: 46.78086667 | F57: 92.08843333 | G57: 0.0 | H57: 601 | I57: Outer Flange | J57: 0.622 | K57: 0.559 | L57: 0.188 | M57: 0.582 | N57: 0.125 | O57: 0.582 | P57: 0.25 | Q57: 0.559 | R57: 0.125 | S57: HIGH | T57: 75-100
A58: DE2o | B58: 3 | C58: 4 | D58: 2006-08-21 | E58: 46.78086667 | F58: 92.08843333 | G58: -2.0 | H58: =SUM(H57-2) -> 599 | I58: Outer Flange | J58: 0.614 | K58: 0.551 | L58: 0.25 | M58: 0.534 | N58: 0.25 | O58: 0.544 | P58: 0.375 | Q58: 0.551 | R58: 0.125 | S58: HIGH | T58: 75-100
A59: DE2o | B59: 4 | C59: 4 | D59: 2006-08-21 | E59: 46.78086667 | F59: 92.08843333 | G59: -4.0 | H59: =SUM(H57-4) -> 597 | I59: Outer Flange | J59: 0.603 | K59: 0.523 | L59: 0.188 | M59: 0.503 | N59: 0.188 | O59: 0.493 | P59: 0.375 | Q59: 0.533 | R59: 0.5 | S59: HIGH | T59: 75-100
A60: DE2o | B60: 5 | C60: 4 | D60: 2006-08-21 | E60: 46.78086667 | F60: 92.08843333 | G60: -6.0 | H60: =SUM(H57-6) -> 595 | I60: Outer Flange | J60: 0.605 | K60: 0.515 | L60: 0.375 | M60: 0.542 | N60: 0.188 | O60: 0.542 | P60: 0.25 | Q60: 0.542 | R60: 0.375 | S60: HIGH | T60: 75-100
A61: DE2o | B61: 6 | C61: 4 | D61: 2006-08-21 | E61: 46.78086667 | F61: 92.08843333 | G61: -8.0 | H61: =SUM(H57-8) -> 593 | I61: Outer Flange | J61: 0.615 | K61: 0.575 | L61: 0.25 | M61: 0.552 | N61: 0.25 | O61: 0.552 | P61: 0.25 | Q61: 0.552 | R61: 0.25 | S61: HIGH | T61: 75-100
A62: DE2o | B62: 7 | C62: 4 | D62: 2006-08-21 | E62: 46.78086667 | F62: 92.08843333 | G62: -10.0 | H62: =SUM(H57-10) -> 591 | I62: Outer Flange | J62: 0.602 | K62: 0.539 | L62: 0.125 | M62: 0.539 | N62: 0.188 | O62: 0.539 | P62: 0.188 | Q62: 0.562 | R62: 0.125 | S62: HIGH | T62: 75-100
A63: DE2o | B63: 8 | C63: 4 | D63: 2006-08-21 | E63: 46.78086667 | F63: 92.08843333 | G63: -15.0 | H63: =SUM(H57-15) -> 586 | I63: Outer Flange | J63: 0.612 | K63: 0.549 | L63: 0.188 | M63: 0.582 | N63: 0.188 | O63: 0.602 | P63: 0.25 | Q63: 0.592 | R63: 0.125 | S63: HIGH | T63: 75-100
A64: DE2o | B64: 9 | C64: 4 | D64: 2006-08-21 | E64: 46.78086667 | F64: 92.08843333 | G64: -20.0 | H64: =SUM(H57-20) -> 581 | I64: Outer Flange | J64: 0.621 | K64: 0.591 | L64: 0.125 | M64: 0.601 | N64: 0.125 | O64: 0.591 | P64: 0.25 | Q64: 0.601 | R64: 0.188 | S64: HIGH | T64: 75-100
A65: DE2o | B65: 10 | C65: 4 | D65: 2006-08-21 | E65: 46.78086667 | F65: 92.08843333 | G65: -31 | H65: =601-31 -> 570 | I65: Outer Flange | J65: 0.623 | K65: 0.583 | L65: 0.125 | M65: 0.583 | N65: 0.188 | O65: 0.553 | P65: 0.25 | Q65: 0.583 | R65: 0.125 | S65: MOD | T65: 50-75
A66: DE3i | B66: 1 | C66: 5 | D66: 2006-08-21 | E66: 46.78016667 | F66: 92.0901 | G66: +2.0 | H66: =SUM(H67+2) -> 603 | I66: Inner Flange | J66: 0.628
A67: DE3i | B67: 2 | C67: 5 | D67: 2006-08-21 | E67: 46.78016667 | F67: 92.0901 | G67: 0.0 | H67: 601 | I67: Inner Flange | J67: 0.619 | K67: 0.579 | L67: 0.25 | M67: 0.569 | N67: 0.25 | O67: 0.539 | P67: 0.25 | Q67: 0.549 | R67: 0.188 | S67: HIGH | T67: =IF(S67="high","75-100",IF(S67="mod","50-75",IF(S67="low","0-50"," "))) -> 75-100
A68: DE3i | B68: 3 | C68: 5 | D68: 2006-08-21 | E68: 46.78016667 | F68: 92.0901 | G68: -2.0 | H68: =SUM(H67-2) -> 599 | I68: Inner Flange | J68: 0.602 | K68: 0.539 | L68: 0.625 | M68: 0.552 | N68: 0.625 | O68: 0.532 | P68: 0.5 | Q68: 0.539 | R68: 0.188 | S68: HIGH | T68: 75-100
A69: DE3i | B69: 4 | C69: 5 | D69: 2006-08-21 | E69: 46.78016667 | F69: 92.0901 | G69: -4.0 | H69: =SUM(H67-4) -> 597 | I69: Inner Flange | J69: 0.604 | K69: 0.541 | L69: 0.188 | M69: 0.554 | N69: 0.188 | O69: 0.541 | P69: 0.25 | Q69: 0.541 | R69: 0.125 | S69: HIGH | T69: 75-100
A70: DE3i | B70: 5 | C70: 5 | D70: 2006-08-21 | E70: 46.78016667 | F70: 92.0901 | G70: -6.0 | H70: =SUM(H67-6) -> 595 | I70: Inner Flange | J70: 0.596 | K70: 0.556 | L70: 0.188 | M70: 0.471 | N70: 0.25 | O70: 0.556 | P70: 0.063 | Q70: 0.546 | R70: 0.188 | S70: HIGH | T70: 75-100
A71: DE3i | B71: 6 | C71: 5 | D71: 2006-08-21 | E71: 46.78016667 | F71: 92.0901 | G71: -8.0 | H71: =SUM(H67-8) -> 593 | I71: Inner Flange | J71: 0.619 | K71: 0.539 | L71: 0.063 | M71: 0.556 | N71: 0.125 | O71: 0.556 | P71: 0.25 | Q71: 0.556 | R71: 0.125 | S71: HIGH | T71: 75-100
A72: DE3i | B72: 7 | C72: 5 | D72: 2006-08-21 | E72: 46.78016667 | F72: 92.0901 | G72: -10.0 | H72: =SUM(H67-10) -> 591 | I72: Inner Flange
A73: DE3i | B73: 8 | C73: 5 | D73: 2006-08-21 | E73: 46.78016667 | F73: 92.0901 | G73: -15.0 | H73: =SUM(H67-15) -> 586 | I73: Inner Flange
A74: DE3i | B74: 9 | C74: 5 | D74: 2006-08-21 | E74: 46.78016667 | F74: 92.0901 | G74: -20.0 | H74: =SUM(H67-20) -> 581 | I74: Inner Flange
A75: DE3o | B75: 1 | C75: 6 | D75: 2006-08-21 | E75: 46.78016667 | F75: 92.0901 | G75: +2.0 | H75: =SUM(H76+2) -> 603 | I75: Outer Flange | J75: 0.607
A76: DE3o | B76: 2 | C76: 6 | D76: 2006-08-21 | E76: 46.78016667 | F76: 92.0901 | G76: 0.0 | H76: 601 | I76: Outer Flange | J76: 0.604 | K76: 0.564 | L76: 0.188 | M76: 0.574 | N76: 0.125 | O76: 0.544 | P76: 0.25 | Q76: 0.541 | R76: 0.125 | S76: HIGH | T76: 75-100
A77: DE3o | B77: 3 | C77: 6 | D77: 2006-08-21 | E77: 46.78016667 | F77: 92.0901 | G77: -2.0 | H77: =SUM(H76-2) -> 599 | I77: Outer Flange | J77: 0.595 | K77: 0.515 | L77: 0.25 | M77: 0.532 | N77: 0.188 | O77: 0.515 | P77: 0.25 | Q77: 0.532 | R77: 0.5 | S77: HIGH | T77: 75-100
A78: DE3o | B78: 4 | C78: 6 | D78: 2006-08-21 | E78: 46.78016667 | F78: 92.0901 | G78: -4.0 | H78: =SUM(H76-4) -> 597 | I78: Outer Flange | J78: 0.597 | K78: 0.507 | L78: 0.25 | M78: 0.497 | N78: 0.375 | O78: 0.507 | P78: 0.375 | Q78: 0.537 | R78: 0.375 | S78: HIGH | T78: 75-100
A79: DE3o | B79: 5 | C79: 6 | D79: 2006-08-21 | E79: 46.78016667 | F79: 92.0901 | G79: -6.0 | H79: =SUM(H76-6) -> 595 | I79: Outer Flange | J79: 0.605 | K79: 0.542 | L79: 0.25 | M79: 0.565 | N79: 0.125 | O79: 0.555 | P79: 0.125 | Q79: 0.565 | R79: 0.25 | S79: HIGH | T79: 75-100
A80: DE3o | B80: 6 | C80: 6 | D80: 2006-08-21 | E80: 46.78016667 | F80: 92.0901 | G80: -8.0 | H80: =SUM(H76-8) -> 593 | I80: Outer Flange | J80: 0.604 | K80: 0.541 | L80: 0.188 | M80: 0.564 | N80: 0.125 | O80: 0.554 | P80: 0.125 | Q80: 0.554 | R80: 0.125 | S80: HIGH | T80: 75-100
A81: DE3o | B81: 7 | C81: 6 | D81: 2006-08-21 | E81: 46.78016667 | F81: 92.0901 | G81: -10.0 | H81: =SUM(H76-10) -> 591 | I81: Outer Flange | J81: 0.618 | K81: 0.555 | L81: 0.188 | M81: 0.578 | N81: 0.25 | O81: 0.555 | P81: 0.25 | Q81: 0.555 | R81: 0.25 | S81: HIGH | T81: 75-100
A82: DE3o | B82: 8 | C82: 6 | D82: 2006-08-21 | E82: 46.78016667 | F82: 92.0901 | G82: -15.0 | H82: =SUM(H76-15) -> 586 | I82: Outer Flange | J82: 0.611 | K82: 0.571 | L82: 0.125 | M82: 0.601 | N82: 0.188 | O82: 0.531 | P82: 0.063 | Q82: 0.548 | R82: 0.125 | S82: MOD | T82: 50-75
A83: DE3o | B83: 9 | C83: 6 | D83: 2006-08-21 | E83: 46.78016667 | F83: 92.0901 | G83: -20.0 | H83: =SUM(H76-20) -> 581 | I83: Outer Flange | J83: 0.612 | K83: 0.572 | L83: 0.188 | M83: 0.592 | N83: 0.125 | O83: 0.572 | P83: 0.125 | Q83: 0.562 | R83: 0.25 | S83: LOW | T83: 0-50
A84: DE3o | B84: 10 | C84: 6 | D84: 2006-08-21 | E84: 46.78016667 | F84: 92.0901 | G84: -30 | H84: =601-30 -> 571 | I84: Outer Flange | J84: 0.615 | K84: 0.575 | L84: 0.5 | M84: 0.585 | N84: 0.375 | O84: 0.565 | P84: 0.25 | Q84: 0.575 | R84: 0.188 | S84: LOW | T84: 0-50
A85: DE4i | B85: 1 | C85: 7 | D85: 2006-08-21 | E85: 46.77961667 | F85: 92.09183333 | G85: +2.0 | H85: =SUM(H86+2) -> 603 | I85: Inner Flange | J85: 0.606
A86: DE4i | B86: 2 | C86: 7 | D86: 2006-08-21 | E86: 46.77961667 | F86: 92.09183333 | G86: 0.0 | H86: 601 | I86: Inner Flange | J86: 0.581 | K86: 0.551 | L86: 0.125 | M86: 0.561 | N86: 0.25 | O86: 0.541 | P86: 0.25 | Q86: 0.551 | R86: 0.125 | S86: MOD | T86: 50-75
A87: DE4i | B87: 3 | C87: 7 | D87: 2006-08-21 | E87: 46.77961667 | F87: 92.09183333 | G87: -2.0 | H87: =SUM(H86-2) -> 599 | I87: Inner Flange | J87: 0.585 | K87: 0.505 | L87: 0.625 | M87: 0.522 | N87: 0.375 | O87: 0.522 | P87: 0.25 | Q87: 0.522 | R87: 0.25 | S87: HIGH | T87: 75-100
A88: DE4i | B88: 4 | C88: 7 | D88: 2006-08-21 | E88: 46.77961667 | F88: 92.09183333 | G88: -4.0 | H88: =SUM(H86-4) -> 597 | I88: Inner Flange | J88: 0.592 | K88: 0.542 | L88: 0.25 | M88: 0.542 | N88: 0.125 | O88: 0.562 | P88: 0.188 | Q88: 0.572 | R88: 0.125 | S88: HIGH | T88: 75-100
A89: DE4i | B89: 5 | C89: 7 | D89: 2006-08-21 | E89: 46.77961667 | F89: 92.09183333 | G89: -6.0 | H89: =SUM(H86-6) -> 595 | I89: Inner Flange | J89: 0.603 | K89: 0.54 | L89: 0.125 | M89: 0.553 | N89: 0.125 | O89: 0.553 | P89: 0.063 | Q89: 0.573 | R89: 0.125 | S89: HIGH | T89: 75-100
A90: DE4i | B90: 6 | C90: 7 | D90: 2006-08-21 | E90: 46.77961667 | F90: 92.09183333 | G90: -8.0 | H90: =SUM(H86-8) -> 593 | I90: Inner Flange | J90: 0.615 | K90: 0.585 | L90: 0.188 | M90: 0.595 | N90: 0.125 | O90: 0.585 | P90: 0.125 | Q90: 0.595 | R90: 0.125 | S90: HIGH | T90: 75-100
A91: DE4i | B91: 7 | C91: 7 | D91: 2006-08-21 | E91: 46.77961667 | F91: 92.09183333 | G91: -10.0 | H91: =SUM(H86-10) -> 591 | I91: Inner Flange
A92: DE4i | B92: 8 | C92: 7 | D92: 2006-08-21 | E92: 46.77961667 | F92: 92.09183333 | G92: -15.0 | H92: =SUM(H86-15) -> 586 | I92: Inner Flange
A93: DE4i | B93: 9 | C93: 7 | D93: 2006-08-21 | E93: 46.77961667 | F93: 92.09183333 | G93: -20.0 | H93: =SUM(H86-20) -> 581 | I93: Inner Flange
A94: DE4o | B94: 1 | C94: 8 | D94: 2006-08-21 | E94: 46.77961667 | F94: 92.09183333 | G94: +2.0 | H94: =SUM(H95+2) -> 603 | I94: Outer Flange | J94: 0.6 | T94: =IF(S94="high","75-100",IF(S94="mod","50-75",IF(S94="low","0-50"," "))) -> 
A95: DE4o | B95: 2 | C95: 8 | D95: 2006-08-21 | E95: 46.77961667 | F95: 92.09183333 | G95: 0.0 | H95: 601 | I95: Outer Flange | J95: 0.578 | K95: 0.515 | L95: 0.25 | M95: 0.515 | N95: 0.188 | O95: 0.548 | P95: 0.188 | Q95: 0.515 | R95: 0.25 | S95: MOD | T95: 50-75
A96: DE4o | B96: 3 | C96: 8 | D96: 2006-08-21 | E96: 46.77961667 | F96: 92.09183333 | G96: -2.0 | H96: =SUM(H95-2) -> 599 | I96: Outer Flange | J96: 0.587 | K96: 0.497 | L96: 0.5 | M96: 0.524 | N96: 0.375 | O96: 0.524 | P96: 0.375 | Q96: 0.497 | R96: 0.188 | S96: HIGH | T96: 75-100
A97: DE4o | B97: 4 | C97: 8 | D97: 2006-08-21 | E97: 46.77961667 | F97: 92.09183333 | G97: -4.0 | H97: =SUM(H95-4) -> 597 | I97: Outer Flange | J97: 0.626 | K97: 0.563 | L97: 0.125 | M97: 0.563 | N97: 0.25 | O97: 0.563 | P97: 0.125 | Q97: 0.546 | R97: 0.625 | S97: HIGH | T97: 75-100
A98: DE4o | B98: 5 | C98: 8 | D98: 2006-08-21 | E98: 46.77961667 | F98: 92.09183333 | G98: -6.0 | H98: =SUM(H95-6) -> 595 | I98: Outer Flange | J98: 0.623 | K98: 0.56 | L98: 0.125 | M98: 0.583 | N98: 0.5 | O98: 0.583 | P98: 0.375 | Q98: 0.593 | R98: 0.188 | S98: HIGH | T98: 75-100
A99: DE4o | B99: 6 | C99: 8 | D99: 2006-08-21 | E99: 46.77961667 | F99: 92.09183333 | G99: -8.0 | H99: =SUM(H95-8) -> 593 | I99: Outer Flange | J99: 0.606 | K99: 0.543 | L99: 0.125 | M99: 0.566 | N99: 0.25 | O99: 0.586 | P99: 0.063 | Q99: 0.566 | R99: 0.125 | S99: HIGH | T99: 75-100
A100: DE4o | B100: 7 | C100: 8 | D100: 2006-08-21 | E100: 46.77961667 | F100: 92.09183333 | G100: -10.0 | H100: =SUM(H95-10) -> 591 | I100: Outer Flange | J100: 0.635 | K100: 0.605 | L100: 0.25 | M100: 0.615 | N100: 0.125 | O100: 0.585 | P100: 0.25 | Q100: 0.595 | R100: 0.188 | S100: HIGH | T100: 75-100
A101: DE4o | B101: 8 | C101: 8 | D101: 2006-08-21 | E101: 46.77961667 | F101: 92.09183333 | G101: -15.0 | H101: =SUM(H95-15) -> 586 | I101: Outer Flange | J101: 0.581 | K101: 0.561 | L101: 0.25 | M101: 0.566 | N101: 0.375 | O101: 0.561 | P101: 0.375 | Q101: 0.556 | R101: 0.375 | S101: HIGH | T101: 75-100
A102: DE4o | B102: 9 | C102: 8 | D102: 2006-08-21 | E102: 46.77961667 | F102: 92.09183333 | G102: -20.0 | H102: =SUM(H95-20) -> 581 | I102: Outer Flange | J102: 0.626 | K102: 0.596 | L102: 0.125 | M102: 0.616 | N102: 0.25 | O102: 0.611 | P102: 0.25 | Q102: 0.606 | R102: 0.25 | S102: HIGH | T102: 75-100
A103: DE4o | B103: 10 | C103: 8 | D103: 2006-08-21 | E103: 46.77961667 | F103: 92.09183333 | G103: -29.5 | H103: =601-29.5 -> 571.5 | I103: Outer Flange | J103: 0.623 | K103: 0.583 | L103: 0.375 | M103: 0.603 | N103: 0.25 | O103: 0.573 | P103: 0.25 | Q103: 0.583 | R103: 0.125 | S103: MOD | T103: 50-75
A104: DE5i | B104: 1 | C104: 9 | D104: 2006-08-23 | E104: 46.77943333 | F104: 92.0945 | G104: +2.0 | H104: =SUM(H105+2) -> 603 | I104: Inner Flange | J104: 0.596
A105: DE5i | B105: 2 | C105: 9 | D105: 2006-08-23 | E105: 46.77943333 | F105: 92.0945 | G105: 0.0 | H105: 601 | I105: Inner Flange | J105: 0.524 | K105: 0.399 | L105: 0.5 | M105: 0.384 | N105: 0.5 | O105: 0.424 | P105: 0.063 | Q105: 0.424 | R105: 0.25 | S105: HIGH | T105: 75-100
A106: DE5i | B106: 3 | C106: 9 | D106: 2006-08-23 | E106: 46.77943333 | F106: 92.0945 | G106: -2.0 | H106: =SUM(H105-2) -> 599 | I106: Inner Flange | J106: 0.606 | K106: 0.476 | L106: 0.25 | M106: 0.486 | N106: 0.5 | O106: 0.543 | P106: 0.063 | Q106: 0.543 | R106: 0.125 | S106: HIGH | T106: 75-100
A107: DE5i | B107: 4 | C107: 9 | D107: 2006-08-23 | E107: 46.77943333 | F107: 92.0945 | G107: -4.0 | H107: =SUM(H105-4) -> 597 | I107: Inner Flange | J107: 0.589 | K107: 0.499 | L107: 0.125 | M107: 0.499 | N107: 0.063 | O107: 0.469 | P107: 0.063 | Q107: 0.489 | R107: 0.063 | S107: HIGH | T107: 75-100
A108: DE5i | B108: 5 | C108: 9 | D108: 2006-08-23 | E108: 46.77943333 | F108: 92.0945 | G108: -6.0 | H108: =SUM(H105-6) -> 595 | I108: Inner Flange | J108: 0.613 | K108: 0.483 | L108: 1 | M108: 0.55 | N108: 0.125 | O108: 0.513 | P108: 0.5 | Q108: 0.513 | R108: 0.5 | S108: HIGH | T108: 75-100
A109: DE5i | B109: 6 | C109: 9 | D109: 2006-08-23 | E109: 46.77943333 | F109: 92.0945 | G109: -8.0 | H109: =SUM(H105-8) -> 593 | I109: Inner Flange | J109: 0.623 | K109: 0.523 | L109: 0.25 | M109: 0.493 | N109: 0.125 | O109: 0.513 | P109: 0.125 | Q109: 0.523 | R109: 0.063 | S109: HIGH | T109: 75-100
A110: DE5i | B110: 7 | C110: 9 | D110: 2006-08-23 | E110: 46.77943333 | F110: 92.0945 | G110: -10.0 | H110: =SUM(H105-10) -> 591 | I110: Inner Flange
A111: DE5i | B111: 8 | C111: 9 | D111: 2006-08-23 | E111: 46.77943333 | F111: 92.0945 | G111: -15.0 | H111: =SUM(H105-15) -> 586 | I111: Inner Flange
A112: DE5i | B112: 9 | C112: 9 | D112: 2006-08-23 | E112: 46.77943333 | F112: 92.0945 | G112: -20.0 | H112: =SUM(H105-20) -> 581 | I112: Inner Flange
A113: DE5o | B113: 1 | C113: 10 | D113: 2006-08-23 | E113: 46.77943333 | F113: 92.0945 | G113: +2.0 | H113: =SUM(H114+2) -> 603 | I113: Outer Flange | J113: 0.609
A114: DE5o | B114: 2 | C114: 10 | D114: 2006-08-23 | E114: 46.77943333 | F114: 92.0945 | G114: 0.0 | H114: 601 | I114: Outer Flange | J114: 0.593 | K114: 0.468 | L114: 0.25 | M114: 0.503 | N114: 0.5 | O114: 0.473 | P114: 0.25 | Q114: 0.533 | R114: 0.125 | S114: MOD | T114: 50-75
A115: DE5o | B115: 3 | C115: 10 | D115: 2006-08-23 | E115: 46.77943333 | F115: 92.0945 | G115: -2.0 | H115: =SUM(H114-2) -> 599 | I115: Outer Flange | J115: 0.563 | K115: 0.463 | L115: 0.5 | M115: 0.438 | N115: 0.188 | O115: 0.413 | P115: 0.5 | Q115: 0.423 | R115: 0.25 | S115: HIGH | T115: 75-100
A116: DE5o | B116: 4 | C116: 10 | D116: 2006-08-23 | E116: 46.77943333 | F116: 92.0945 | G116: -4.0 | H116: =SUM(H114-4) -> 597 | I116: Outer Flange | J116: 0.608 | K116: 0.433 | L116: 1 | M116: 0.448 | N116: 0.75 | O116: 0.488 | P116: 0.25 | Q116: 0.508 | R116: 0.75 | S116: HIGH | T116: 75-100
A117: DE5o | B117: 5 | C117: 10 | D117: 2006-08-23 | E117: 46.77943333 | F117: 92.0945 | G117: -6.0 | H117: =SUM(H114-6) -> 595 | I117: Outer Flange | J117: 0.56 | K117: 0.395 | L117: 0.5 | M117: 0.497 | N117: 0.25 | O117: 0.46 | P117: 0.25 | Q117: 0.45 | R117: 0.188 | S117: HIGH | T117: 75-100
A118: DE5o | B118: 6 | C118: 10 | D118: 2006-08-23 | E118: 46.77943333 | F118: 92.0945 | G118: -8.0 | H118: =SUM(H114-8) -> 593 | I118: Outer Flange | J118: 0.618 | K118: 0.555 | L118: 0.063 | M118: 0.518 | N118: 0.5 | O118: 0.538 | P118: 0.5 | Q118: 0.513 | R118: 0.625 | S118: HIGH | T118: 75-100
A119: DE5o | B119: 7 | C119: 10 | D119: 2006-08-23 | E119: 46.77943333 | F119: 92.0945 | G119: -10.0 | H119: =SUM(H114-10) -> 591 | I119: Outer Flange | J119: 0.626 | K119: 0.546 | L119: 0.5 | M119: 0.556 | N119: 0.125 | O119: 0.536 | P119: 0.125 | Q119: 0.563 | R119: 0.125 | S119: HIGH | T119: 75-100
A120: DE5o | B120: 8 | C120: 10 | D120: 2006-08-23 | E120: 46.77943333 | F120: 92.0945 | G120: -15.0 | H120: =SUM(H114-15) -> 586 | I120: Outer Flange | J120: 0.616 | K120: 0.491 | L120: 0.25 | M120: 0.516 | N120: 0.063 | O120: 0.426 | P120: 0.063 | Q120: 0.516 | R120: 0.063 | S120: HIGH | T120: 75-100
A121: DE5o | B121: 9 | C121: 10 | D121: 2006-08-23 | E121: 46.77943333 | F121: 92.0945 | G121: -20.0 | H121: =SUM(H114-20) -> 581 | I121: Outer Flange | J121: 0.617 | K121: 0.554 | L121: 0.063 | M121: 0.554 | N121: 0.125 | O121: 0.527 | P121: 0.125 | Q121: 0.517 | R121: 0.125 | S121: HIGH | T121: 75-100
A122: DE6i | B122: 1 | C122: 11 | D122: 2006-08-23 | E122: 46.77803333 | F122: 92.09328333 | G122: +2.0 | H122: =SUM(H123+2) -> 603 | I122: Inner Flange | J122: 0.611
A123: DE6i | B123: 2 | C123: 11 | D123: 2006-08-23 | E123: 46.77803333 | F123: 92.09328333 | G123: 0.0 | H123: 601 | I123: Inner Flange | J123: 0.614 | K123: 0.551 | L123: 0.063 | M123: 0.544 | N123: 0.25 | O123: 0.551 | P123: 0.063 | Q123: 0.564 | R123: 0.125 | S123: MOD | T123: 50-75
A124: DE6i | B124: 3 | C124: 11 | D124: 2006-08-23 | E124: 46.77803333 | F124: 92.09328333 | G124: -2.0 | H124: =SUM(H123-2) -> 599 | I124: Inner Flange | J124: 0.623 | K124: 0.498 | L124: 0.5 | M124: 0.503 | N124: 0.063 | O124: 0.498 | P124: 0.5 | Q124: 0.473 | R124: 0.5 | S124: HIGH | T124: 75-100
A125: DE6i | B125: 4 | C125: 11 | D125: 2006-08-23 | E125: 46.77803333 | F125: 92.09328333 | G125: -4.0 | H125: =SUM(H123-4) -> 597 | I125: Inner Flange | J125: 0.617 | K125: 0.554 | L125: 0.25 | M125: 0.527 | N125: 0.063 | O125: 0.477 | P125: 0.125 | Q125: 0.497 | R125: 0.188 | S125: HIGH | T125: 75-100
A126: DE6i | B126: 5 | C126: 11 | D126: 2006-08-23 | E126: 46.77803333 | F126: 92.09328333 | G126: -6.0 | H126: =SUM(H123-6) -> 595 | I126: Inner Flange | J126: 0.609 | K126: 0.449 | L126: 0.125 | M126: 0.549 | N126: 0.063 | O126: 0.519 | P126: 0.125 | Q126: 0.546 | R126: 0.25 | S126: HIGH | T126: 75-100
A127: DE6i | B127: 6 | C127: 11 | D127: 2006-08-23 | E127: 46.77803333 | F127: 92.09328333 | G127: -8.0 | H127: =SUM(H123-8) -> 593 | I127: Inner Flange | J127: 0.615 | K127: 0.552 | L127: 0.063 | M127: 0.505 | N127: 0.25 | O127: 0.525 | P127: 0.25 | Q127: 0.552 | R127: 0.125 | S127: HIGH | T127: 75-100
A128: DE6i | B128: 7 | C128: 11 | D128: 2006-08-23 | E128: 46.77803333 | F128: 92.09328333 | G128: -10.0 | H128: =SUM(H123-10) -> 591 | I128: Inner Flange
A129: DE6i | B129: 8 | C129: 11 | D129: 2006-08-23 | E129: 46.77803333 | F129: 92.09328333 | G129: -15.0 | H129: =SUM(H123-15) -> 586 | I129: Inner Flange
A130: DE6i | B130: 9 | C130: 11 | D130: 2006-08-23 | E130: 46.77803333 | F130: 92.09328333 | G130: -20.0 | H130: =SUM(H123-20) -> 581 | I130: Inner Flange
A131: DE6o | B131: 1 | C131: 12 | D131: 2006-08-23 | E131: 46.77803333 | F131: 92.09328333 | G131: +2.0 | H131: =SUM(H132+2) -> 603 | I131: Outer Flange | J131: 0.611
A132: DE6o | B132: 2 | C132: 12 | D132: 2006-08-23 | E132: 46.77803333 | F132: 92.09328333 | G132: 0.0 | H132: 601 | I132: Outer Flange | J132: 0.609 | K132: 0.546 | L132: 0.063 | M132: 0.484 | N132: 0.25 | O132: 0.519 | P132: 0.063 | Q132: 0.546 | R132: 0.125 | S132: LOW | T132: 0-50
A133: DE6o | B133: 3 | C133: 12 | D133: 2006-08-23 | E133: 46.77803333 | F133: 92.09328333 | G133: -2.0 | H133: =SUM(H132-2) -> 599 | I133: Outer Flange | J133: 0.612 | K133: 0.487 | L133: 0.5 | M133: 0.462 | N133: 0.5 | O133: 0.462 | P133: 0.25 | Q133: 0.487 | R133: 0.313 | S133: MOD | T133: 50-75
A134: DE6o | B134: 4 | C134: 12 | D134: 2006-08-23 | E134: 46.77803333 | F134: 92.09328333 | G134: -4.0 | H134: =SUM(H132-4) -> 597 | I134: Outer Flange | J134: 0.612 | K134: 0.462 | L134: 0.75 | M134: 0.462 | N134: 0.875 | O134: 0.482 | P134: 0.125 | Q134: 0.462 | R134: 0.25 | S134: HIGH | T134: 75-100
A135: DE6o | B135: 5 | C135: 12 | D135: 2006-08-23 | E135: 46.77803333 | F135: 92.09328333 | G135: -6.0 | H135: =SUM(H132-6) -> 595 | I135: Outer Flange | J135: 0.614 | K135: 0.489 | L135: 0.125 | M135: 0.494 | N135: 0.25 | O135: 0.514 | P135: 0.063 | Q135: 0.551 | R135: 0.125 | S135: HIGH | T135: 75-100
A136: DE6o | B136: 6 | C136: 12 | D136: 2006-08-23 | E136: 46.77803333 | F136: 92.09328333 | G136: -8.0 | H136: =SUM(H132-8) -> 593 | I136: Outer Flange | J136: 0.616 | K136: 0.536 | L136: 0.063 | M136: 0.506 | N136: 0.125 | O136: 0.526 | P136: 0.25 | Q136: 0.553 | R136: 0.5 | S136: HIGH | T136: 75-100
A137: DE6o | B137: 7 | C137: 12 | D137: 2006-08-23 | E137: 46.77803333 | F137: 92.09328333 | G137: -10.0 | H137: =SUM(H132-10) -> 591 | I137: Outer Flange | J137: 0.533 | K137: 0.453 | L137: 0.063 | M137: 0.423 | N137: 0.063 | O137: 0.413 | P137: 0.25 | Q137: 0.403 | R137: 0.375 | S137: HIGH | T137: 75-100
A138: DE6o | B138: 8 | C138: 12 | D138: 2006-08-23 | E138: 46.77803333 | F138: 92.09328333 | G138: -15.0 | H138: =SUM(H132-15) -> 586 | I138: Outer Flange | J138: 0.618 | K138: 0.555 | L138: 0.25 | M138: 0.518 | N138: 0.125 | O138: 0.518 | P138: 0.125 | Q138: 0.528 | R138: 0.25 | S138: HIGH | T138: 75-100
A139: DE6o | B139: 9 | C139: 12 | D139: 2006-08-23 | E139: 46.77803333 | F139: 92.09328333 | G139: -20.0 | H139: =SUM(H132-20) -> 581 | I139: Outer Flange | J139: 0.613 | K139: 0.583 | L139: 0.063 | M139: 0.523 | N139: 0.063 | O139: 0.513 | P139: 0.25 | Q139: 0.503 | R139: 0.125 | S139: HIGH | T139: 75-100
A140: DE6o | B140: 10 | C140: 12 | D140: 2006-08-23 | E140: 46.77803333 | F140: 92.09328333 | G140: -25 | H140: =601-25 -> 576 | I140: Outer Flange | J140: 0.601 | K140: 0.538 | L140: 0.25 | M140: 0.538 | N140: 0.063 | O140: 0.511 | P140: 0.125 | Q140: 0.526 | R140: 0.063 | S140: HIGH | T140: 75-100
A141: DE7i | B141: 1 | C141: 13 | D141: 2006-09-01 | E141: 46.77895 | F141: 92.09125 | G141: +2.0 | H141: =SUM(H142+2) -> 603 | I141: Inner Flange | J141: 0.063
A142: DE7i | B142: 2 | C142: 13 | D142: 2006-09-01 | E142: 46.77895 | F142: 92.09125 | G142: 0.0 | H142: 601 | I142: Inner Flange | J142: 0.606 | K142: 0.586 | L142: 0.125 | M142: 0.556 | N142: 0.25 | O142: 0.556 | P142: 0.25 | Q142: 0.556 | R142: 0.125 | S142: LOW | T142: 0-50
A143: DE7i | B143: 3 | C143: 13 | D143: 2006-09-01 | E143: 46.77895 | F143: 92.09125 | G143: -2.0 | H143: =SUM(H142-2) -> 599 | I143: Inner Flange | J143: 0.603 | K143: 0.543 | L143: 0.25 | M143: 0.523 | N143: 0.25 | O143: 0.523 | P143: 0.25 | Q143: 0.533 | R143: 0.188 | S143: HIGH | T143: 75-100
A144: DE7i | B144: 4 | C144: 13 | D144: 2006-09-01 | E144: 46.77895 | F144: 92.09125 | G144: -4.0 | H144: =SUM(H142-4) -> 597 | I144: Inner Flange | J144: 0.625 | K144: 0.585 | L144: 0.25 | M144: 0.605 | N144: 0.25 | O144: 0.575 | P144: 0.188 | Q144: 0.575 | R144: 0.188 | S144: HIGH | T144: 75-100
A145: DE7i | B145: 5 | C145: 13 | D145: 2006-09-01 | E145: 46.77895 | F145: 92.09125 | G145: -6.0 | H145: =SUM(H142-6) -> 595 | I145: Inner Flange | J145: 0.573 | K145: 0.523 | L145: 0.25 | M145: 0.523 | N145: 0.125 | O145: 0.553 | P145: 0.125 | Q145: 0.523 | R145: 0.25 | S145: HIGH | T145: 75-100
A146: DE7i | B146: 6 | C146: 13 | D146: 2006-09-01 | E146: 46.77895 | F146: 92.09125 | G146: -8.0 | H146: =SUM(H142-8) -> 593 | I146: Inner Flange | J146: 0.612 | K146: 0.572 | L146: 0.25 | M146: 0.602 | N146: 0.25 | O146: 0.592 | P146: 0.375 | Q146: 0.582 | R146: 0.125 | S146: HIGH | T146: 75-100
A147: DE7i | B147: 7 | C147: 13 | D147: 2006-09-01 | E147: 46.77895 | F147: 92.09125 | G147: -10.0 | H147: =SUM(H142-10) -> 591 | I147: Inner Flange
A148: DE7i | B148: 8 | C148: 13 | D148: 2006-09-01 | E148: 46.77895 | F148: 92.09125 | G148: -15.0 | H148: =SUM(H142-15) -> 586 | I148: Inner Flange
A149: DE7i | B149: 9 | C149: 13 | D149: 2006-09-01 | E149: 46.77895 | F149: 92.09125 | G149: -20.0 | H149: =SUM(H142-20) -> 581 | I149: Inner Flange
A150: DE7o | B150: 1 | C150: 14 | D150: 2006-09-01 | E150: 46.77895 | F150: 92.09125 | G150: +2.0 | H150: =SUM(H151+2) -> 603 | I150: Outer Flange | J150: 0.591
A151: DE7o | B151: 2 | C151: 14 | D151: 2006-09-01 | E151: 46.77895 | F151: 92.09125 | G151: 0.0 | H151: 601 | I151: Outer Flange | J151: 0.607 | K151: 0.547 | L151: 0.25 | M151: 0.547 | N151: 0.125 | O151: 0.547 | P151: 0.125 | Q151: 0.557 | R151: 0.125 | S151: MOD | T151: 50-75
A152: DE7o | B152: 3 | C152: 14 | D152: 2006-09-01 | E152: 46.77895 | F152: 92.09125 | G152: -2.0 | H152: =SUM(H151-2) -> 599 | I152: Outer Flange | J152: 0.607 | K152: 0.507 | L152: 0.5 | M152: 0.497 | N152: 0.375 | O152: 0.497 | P152: 0.375 | Q152: 0.527 | R152: 0.625 | S152: HIGH | T152: 75-100
A153: DE7o | B153: 4 | C153: 14 | D153: 2006-09-01 | E153: 46.77895 | F153: 92.09125 | G153: -4.0 | H153: =SUM(H151-4) -> 597 | I153: Outer Flange | J153: 0.594 | K153: 0.524 | L153: 0.125 | M153: 0.504 | N153: 0.188 | O153: 0.544 | P153: 0.375 | Q153: 0.531 | R153: 0.25 | S153: HIGH | T153: 75-100
A154: DE7o | B154: 5 | C154: 14 | D154: 2006-09-01 | E154: 46.77895 | F154: 92.09125 | G154: -6.0 | H154: =SUM(H151-6) -> 595 | I154: Outer Flange | J154: 0.611 | K154: 0.541 | L154: 0.188 | M154: 0.511 | N154: 0.375 | O154: 0.548 | P154: 0.125 | Q154: 0.561 | R154: 0.25 | S154: HIGH | T154: 75-100
A155: DE7o | B155: 6 | C155: 14 | D155: 2006-09-01 | E155: 46.77895 | F155: 92.09125 | G155: -8.0 | H155: =SUM(H151-8) -> 593 | I155: Outer Flange | J155: 0.567 | K155: 0.517 | L155: 0.188 | M155: 0.547 | N155: 0.25 | O155: 0.537 | P155: 0.188 | Q155: 0.547 | R155: 0.125 | S155: HIGH | T155: 75-100
A156: DE7o | B156: 7 | C156: 14 | D156: 2006-09-01 | E156: 46.77895 | F156: 92.09125 | G156: -10.0 | H156: =SUM(H151-10) -> 591 | I156: Outer Flange | J156: 0.617 | K156: 0.587 | L156: 0.25 | M156: 0.577 | N156: 0.125 | O156: 0.577 | P156: 0.25 | Q156: 0.577 | R156: 0.125 | S156: HIGH | T156: 75-100
A157: DE7o | B157: 8 | C157: 14 | D157: 2006-09-01 | E157: 46.77895 | F157: 92.09125 | G157: -15.0 | H157: =SUM(H151-15) -> 586 | I157: Outer Flange | J157: 0.627 | K157: 0.577 | L157: 0.25 | M157: 0.587 | N157: 0.375 | O157: 0.587 | P157: 0.375 | Q157: 0.617 | R157: 0.25 | S157: HIGH | T157: 75-100
A158: DE7o | B158: 9 | C158: 14 | D158: 2006-09-01 | E158: 46.77895 | F158: 92.09125 | G158: -20.0 | H158: =SUM(H151-20) -> 581 | I158: Outer Flange | J158: 0.622 | K158: 0.582 | L158: 0.25 | M158: 0.602 | N158: 0.188 | O158: 0.562 | P158: 0.25 | Q158: 0.592 | R158: 0.188 | S158: HIGH | T158: =IF(S158="high","75-100",IF(S158="mod","50-75",IF(S158="low","0-50"," "))) -> 75-100
A159: DE7o | B159: 10 | C159: 14 | D159: 2006-09-01 | E159: 46.77895 | F159: 92.09125 | G159: -30.5 | H159: =601-30.5 -> 570.5 | I159: Outer Flange | J159: 0.619 | K159: 0.559 | L159: 0.375 | M159: 0.579 | N159: 0.375 | O159: 0.494 | P159: 0.625 | Q159: 0.569 | R159: 0.5 | S159: LOW | T159: 0-50
A160: DE8i | B160: 1 | C160: 15 | D160: 2006-09-01 | E160: 46.77965 | F160: 92.08946667 | G160: +2.0 | H160: =SUM(H161+2) -> 603 | I160: Inner Flange | J160: 0.596
A161: DE8i | B161: 2 | C161: 15 | D161: 2006-09-01 | E161: 46.77965 | F161: 92.08946667 | G161: 0.0 | H161: 601 | I161: Inner Flange | J161: 0.579 | K161: 0.479 | L161: 0.25 | M161: 0.529 | N161: 0.25 | O161: 0.499 | P161: 0.25 | Q161: 0.516 | R161: 0.25 | S161: MOD | T161: 50-75
A162: DE8i | B162: 3 | C162: 15 | D162: 2006-09-01 | E162: 46.77965 | F162: 92.08946667 | G162: -2.0 | H162: =SUM(H161-2) -> 599 | I162: Inner Flange | J162: 0.597 | K162: 0.534 | L162: 0.5 | M162: 0.534 | N162: 0.25 | O162: 0.547 | P162: 0.375 | Q162: 0.534 | R162: 0.375 | S162: HIGH | T162: 75-100
A163: DE8i | B163: 4 | C163: 15 | D163: 2006-09-01 | E163: 46.77965 | F163: 92.08946667 | G163: -4.0 | H163: =SUM(H161-4) -> 597 | I163: Inner Flange | J163: 0.623 | K163: 0.583 | L163: 0.375 | M163: 0.573 | N163: 0.25 | O163: 0.583 | P163: 0.25 | Q163: 0.573 | R163: 0.25 | S163: HIGH | T163: 75-100
A164: DE8i | B164: 5 | C164: 15 | D164: 2006-09-01 | E164: 46.77965 | F164: 92.08946667 | G164: -6.0 | H164: =SUM(H161-6) -> 595 | I164: Inner Flange | J164: 0.628 | K164: 0.618 | L164: 0.125 | M164: 0.618 | N164: 0.25 | O164: 0.598 | P164: 0.375 | Q164: 0.588 | R164: 0.25 | S164: HIGH | T164: 75-100
A165: DE8i | B165: 6 | C165: 15 | D165: 2006-09-01 | E165: 46.77965 | F165: 92.08946667 | G165: -8.0 | H165: =SUM(H161-8) -> 593 | I165: Inner Flange | J165: 0.609 | K165: 0.569 | L165: 0.125 | M165: 0.589 | N165: 0.375 | O165: 0.589 | P165: 0.25 | Q165: 0.569 | R165: 0.125 | S165: HIGH | T165: 75-100
A166: DE8i | B166: 7 | C166: 15 | D166: 2006-09-01 | E166: 46.77965 | F166: 92.08946667 | G166: -10.0 | H166: =SUM(H161-10) -> 591 | I166: Inner Flange
A167: DE8i | B167: 8 | C167: 15 | D167: 2006-09-01 | E167: 46.77965 | F167: 92.08946667 | G167: -15.0 | H167: =SUM(H161-15) -> 586 | I167: Inner Flange
A168: DE8i | B168: 9 | C168: 15 | D168: 2006-09-01 | E168: 46.77965 | F168: 92.08946667 | G168: -20.0 | H168: =SUM(H161-20) -> 581 | I168: Inner Flange
A169: DE8o | B169: 1 | C169: 16 | D169: 2006-08-23 | E169: 46.77965 | F169: 92.08946667 | G169: +2.0 | H169: =SUM(H170+2) -> 603 | I169: Outer Flange | J169: 0.618
A170: DE8o | B170: 2 | C170: 16 | D170: 2006-08-23 | E170: 46.77965 | F170: 92.08946667 | G170: 0.0 | H170: 601 | I170: Outer Flange | J170: 0.615 | K170: 0.515 | L170: 0.5 | M170: 0.495 | N170: 0.5 | O170: 0.505 | P170: 0.25 | Q170: 0.49 | R170: 0.25 | S170: HIGH | T170: 75-100
A171: DE8o | B171: 3 | C171: 16 | D171: 2006-08-23 | E171: 46.77965 | F171: 92.08946667 | G171: -2.0 | H171: =SUM(H170-2) -> 599 | I171: Outer Flange | J171: 0.609 | K171: 0.484 | L171: 0.5 | M171: 0.459 | N171: 0.5 | O171: 0.449 | P171: 0.375 | Q171: 0.439 | R171: 0.25 | S171: HIGH | T171: 75-100
A172: DE8o | B172: 4 | C172: 16 | D172: 2006-08-23 | E172: 46.77965 | F172: 92.08946667 | G172: -4.0 | H172: =SUM(H170-4) -> 597 | I172: Outer Flange | J172: 0.605 | K172: 0.425 | L172: 1 | M172: 0.455 | N172: 0.75 | O172: 0.455 | P172: 0.5 | Q172: 0.455 | R172: 0.5 | S172: HIGH | T172: 75-100
A173: DE8o | B173: 5 | C173: 16 | D173: 2006-08-23 | E173: 46.77965 | F173: 92.08946667 | G173: -6.0 | H173: =SUM(H170-6) -> 595 | I173: Outer Flange | J173: 0.599 | K173: 0.449 | L173: 0.5 | M173: 0.449 | N173: 1 | O173: 0.469 | P173: 0.625 | Q173: 0.449 | R173: 0.5 | S173: HIGH | T173: 75-100
A174: DE8o | B174: 6 | C174: 16 | D174: 2006-08-23 | E174: 46.77965 | F174: 92.08946667 | G174: -8.0 | H174: =SUM(H170-8) -> 593 | I174: Outer Flange | J174: 0.603 | K174: 0.428 | L174: 0.5 | M174: 0.453 | N174: 1 | O174: 0.453 | P174: 0.25 | Q174: 0.503 | R174: 0.125 | S174: HIGH | T174: 75-100
A175: DE8o | B175: 7 | C175: 16 | D175: 2006-08-23 | E175: 46.77965 | F175: 92.08946667 | G175: -10.0 | H175: =SUM(H170-10) -> 591 | I175: Outer Flange | J175: 0.598 | K175: 0.448 | L175: 0.313 | M175: 0.468 | N175: 0.25 | O175: 0.498 | P175: 0.125 | Q175: 0.448 | R175: 0.25 | S175: HIGH | T175: 75-100
A176: DE8o | B176: 8 | C176: 16 | D176: 2006-08-23 | E176: 46.77965 | F176: 92.08946667 | G176: -15.0 | H176: =SUM(H170-15) -> 586 | I176: Outer Flange | J176: 0.61 | K176: 0.47 | L176: 0.25 | M176: 0.47 | N176: 0.125 | O176: 0.51 | P176: 0.25 | Q176: 0.44 | R176: 0.063 | S176: HIGH | T176: 75-100
A177: DE8o | B177: 9 | C177: 16 | D177: 2006-08-23 | E177: 46.77965 | F177: 92.08946667 | G177: -20.0 | H177: =SUM(H170-20) -> 581 | I177: Outer Flange | J177: 0.605 | K177: 0.525 | L177: 0.063 | M177: 0.535 | N177: 0.063 | O177: 0.525 | P177: 0.125 | Q177: 0.505 | R177: 0.063 | S177: MOD | T177: 50-75
A178: DE8o | B178: 10 | C178: 16 | D178: 2006-08-23 | E178: 46.77965 | F178: 92.08946667 | G178: -29.5 | H178: =601-29.5 -> 571.5 | I178: Outer Flange | J178: 0.628 | K178: 0.598 | L178: 0.25 | M178: 0.608 | N178: 0.125 | O178: 0.588 | P178: 0.125 | Q178: 0.578 | R178: 0.188 | S178: LOW | T178: 0-50
A179: DE9i | B179: 1 | C179: 17 | D179: 2006-08-22 | E179: 46.77985 | F179: 92.08841667 | G179: +2.0 | H179: =SUM(H180+2) -> 603 | I179: Inner Flange | J179: 0.618
A180: DE9i | B180: 2 | C180: 17 | D180: 2006-08-22 | E180: 46.77985 | F180: 92.08841667 | G180: 0.0 | H180: 601 | I180: Inner Flange | J180: 0.611 | K180: 0.581 | L180: 0.125 | M180: 0.591 | N180: 0.125 | O180: 0.571 | P180: 0.125 | Q180: 0.561 | R180: 0.188 | S180: MOD | T180: 50-75
A181: DE9i | B181: 3 | C181: 17 | D181: 2006-08-22 | E181: 46.77985 | F181: 92.08841667 | G181: -2.0 | H181: =SUM(H180-2) -> 599 | I181: Inner Flange | J181: 0.611 | K181: 0.548 | L181: 0.25 | M181: 0.571 | N181: 0.188 | O181: 0.551 | P181: 0.188 | Q181: 0.548 | R181: 0.188 | S181: HIGH | T181: 75-100
A182: DE9i | B182: 4 | C182: 17 | D182: 2006-08-22 | E182: 46.77985 | F182: 92.08841667 | G182: -4.0 | H182: =SUM(H180-4) -> 597 | I182: Inner Flange | J182: 0.617 | K182: 0.554 | L182: 0.25 | M182: 0.567 | N182: 0.188 | O182: 0.567 | P182: 0.188 | Q182: 0.567 | R182: 0.188 | S182: HIGH | T182: 75-100
A183: DE9i | B183: 5 | C183: 17 | D183: 2006-08-22 | E183: 46.77985 | F183: 92.08841667 | G183: -6.0 | H183: =SUM(H180-6) -> 595 | I183: Inner Flange | J183: 0.616 | K183: 0.566 | L183: 0.125 | M183: 0.566 | N183: 0.25 | O183: 0.553 | P183: 0.25 | Q183: 0.566 | R183: 0.188 | S183: HIGH | T183: 75-100
A184: DE9i | B184: 6 | C184: 17 | D184: 2006-08-22 | E184: 46.77985 | F184: 92.08841667 | G184: -8.0 | H184: =SUM(H180-8) -> 593 | I184: Inner Flange | J184: 0.623 | K184: 0.583 | L184: 0.125 | M184: 0.593 | N184: 0.125 | O184: 0.593 | P184: 0.188 | Q184: 0.583 | R184: 0.125 | S184: HIGH | T184: 75-100
A185: DE9i | B185: 7 | C185: 17 | D185: 2006-08-22 | E185: 46.77985 | F185: 92.08841667 | G185: -10.0 | H185: =SUM(H180-10) -> 591 | I185: Inner Flange
A186: DE9i | B186: 8 | C186: 17 | D186: 2006-08-22 | E186: 46.77985 | F186: 92.08841667 | G186: -15.0 | H186: =SUM(H180-15) -> 586 | I186: Inner Flange
A187: DE9i | B187: 9 | C187: 17 | D187: 2006-08-22 | E187: 46.77985 | F187: 92.08841667 | G187: -20.0 | H187: =SUM(H180-20) -> 581 | I187: Inner Flange
A188: DE9o | B188: 1 | C188: 18 | D188: 2006-08-22 | E188: 46.77985 | F188: 92.08841667 | G188: +2.0 | H188: =SUM(H189+2) -> 603 | I188: Outer Flange | J188: 0.616
A189: DE9o | B189: 2 | C189: 18 | D189: 2006-08-22 | E189: 46.77985 | F189: 92.08841667 | G189: 0.0 | H189: 601 | I189: Outer Flange | J189: 0.615 | K189: 0.585 | L189: 0.125 | M189: 0.565 | N189: 0.063 | O189: 0.595 | P189: 0.125 | Q189: 0.595 | R189: 0.125 | S189: MOD | T189: 50-75
A190: DE9o | B190: 3 | C190: 18 | D190: 2006-08-22 | E190: 46.77985 | F190: 92.08841667 | G190: -2.0 | H190: =SUM(H189-2) -> 599 | I190: Outer Flange | J190: 0.598 | K190: 0.548 | L190: 0.188 | M190: 0.498 | N190: 0.25 | O190: 0.538 | P190: 0.125 | Q190: 0.558 | R190: 0.188 | S190: HIGH | T190: 75-100
A191: DE9o | B191: 4 | C191: 18 | D191: 2006-08-22 | E191: 46.77985 | F191: 92.08841667 | G191: -4.0 | H191: =SUM(H189-4) -> 597 | I191: Outer Flange | J191: 0.614 | K191: 0.534 | L191: 0.188 | M191: 0.564 | N191: 0.188 | O191: 0.564 | P191: 0.188 | Q191: 0.564 | R191: 0.188 | S191: HIGH | T191: 75-100
A192: DE9o | B192: 5 | C192: 18 | D192: 2006-08-22 | E192: 46.77985 | F192: 92.08841667 | G192: -6.0 | H192: =SUM(H189-6) -> 595 | I192: Outer Flange | J192: 0.612 | K192: 0.549 | L192: 0.25 | M192: 0.549 | N192: 0.125 | O192: 0.549 | P192: 0.125 | Q192: 0.542 | R192: 0.25 | S192: HIGH | T192: 75-100
A193: DE9o | B193: 6 | C193: 18 | D193: 2006-08-22 | E193: 46.77985 | F193: 92.08841667 | G193: -8.0 | H193: =SUM(H189-8) -> 593 | I193: Outer Flange | J193: 0.603 | K193: 0.54 | L193: 0.25 | M193: 0.553 | N193: 0.188 | O193: 0.563 | P193: 0.188 | Q193: 0.573 | R193: 0.125 | S193: HIGH | T193: 75-100
A194: DE9o | B194: 7 | C194: 18 | D194: 2006-08-22 | E194: 46.77985 | F194: 92.08841667 | G194: -10.0 | H194: =SUM(H189-10) -> 591 | I194: Outer Flange | J194: 0.626 | K194: 0.586 | L194: 0.125 | M194: 0.596 | N194: 0.125 | O194: 0.586 | P194: 0.188 | Q194: 0.596 | R194: 0.125 | S194: HIGH | T194: 75-100
A195: DE9o | B195: 8 | C195: 18 | D195: 2006-08-22 | E195: 46.77985 | F195: 92.08841667 | G195: -15.0 | H195: =SUM(H189-15) -> 586 | I195: Outer Flange
A196: DE9o | B196: 9 | C196: 18 | D196: 2006-08-22 | E196: 46.77985 | F196: 92.08841667 | G196: -20.0 | H196: =SUM(H189-20) -> 581 | I196: Outer Flange
A197: DE10i | B197: 1 | C197: 19 | D197: 2006-08-22 | E197: 46.78006667 | F197: 92.08801667 | G197: +2.0 | H197: =SUM(H198+2) -> 603 | I197: Inner Flange | J197: 0.618
A198: DE10i | B198: 2 | C198: 19 | D198: 2006-08-22 | E198: 46.78006667 | F198: 92.08801667 | G198: 0.0 | H198: 601 | I198: Inner Flange | J198: 0.613 | K198: 0.55 | L198: 0.063 | M198: 0.513 | N198: 0.25 | O198: 0.55 | P198: 0.063 | Q198: 0.55 | R198: 0.063 | S198: LOW | T198: 0-50
A199: DE10i | B199: 3 | C199: 19 | D199: 2006-08-22 | E199: 46.78006667 | F199: 92.08801667 | G199: -2.0 | H199: =SUM(H198-2) -> 599 | I199: Inner Flange | J199: 0.598 | K199: 0.473 | L199: 0.25 | M199: 0.423 | N199: 0.5 | O199: 0.473 | P199: 0.5 | Q199: 0.403 | R199: 0.5 | S199: HIGH | T199: 75-100
A200: DE10i | B200: 4 | C200: 19 | D200: 2006-08-22 | E200: 46.78006667 | F200: 92.08801667 | G200: -4.0 | H200: =SUM(H198-4) -> 597 | I200: Inner Flange | J200: 0.605 | K200: 0.43 | L200: 0.5 | M200: 0.47 | N200: 0.25 | O200: 0.455 | P200: 0.5 | Q200: 0.48 | R200: 0.5 | S200: HIGH | T200: 75-100
... 187 more rows
